Cogmind - Beta 10.1 @@@ ROGUE MODE // 2020.10.24 @ 00:43:05 Player: MTF Result: Establishing 0b11! Performance ------------- Evolutions (9) 4500 Regions Visited (40) 8000 Robots Destroyed (601) 3005 Value Destroyed (27566) 27566 Prototype IDs (127) 2540 Alien Tech Used (15) 3000 Bonus (57572) 57572 TOTAL SCORE: 106183 Bonus ------- High Alert Combat Kills 3427 Follower Combat Kills 943 Aligned with FarCom 300 Met Data Miner 300 Met Imprinter 300 Destroyed Z-Imprinter 1000 Met Zhirov 300 Met Warlord at Base 500 MAIN.C Attacked Warlord 500 Warlord Defense Kill 2296 Met Warlord at Research 2000 Invited to Help at Command 2000 Met Sigix 2000 Recovered Sigix Corpse 1000 Destroyed MAIN.C Guards 500 Met MAIN.C 5000 Destroyed MAIN.C Shell 5000 Destroyed MAIN.C 10000 Met Warlord at Command 2000 Met Architect 300 Started Test 138-B 500 Destroyed A8 300 Destroyed A6 400 Destroyed A5 500 Destroyed A4 700 Destroyed A3 800 Destroyed A2 1000 Destroyed Architect 15000 Win 3000 Friendly Fire -4294 Cogmind --------- Core Integrity 961/1850 Matter 295/300 Energy 480/520 System Corruption 0% Temperature Cool (20) Movement Hovering (22) Location 0b11 Command Parts ------- > --- POWER (3) -------- Zero-point Reactor Zero-point Reactor Zero-point Reactor > --- PROPULSION (5) --- Combat Linear Gravjet Combat Linear Gravjet Combat Linear Gravjet Combat Linear Gravjet Combat Linear Gravjet > --- UTILITY (16) ----- Desublimator Large Storage Unit Zionite Metafield Generator Experimental Targeting Computer Experimental Targeting Computer Experimental Targeting Computer Experimental Armor Integrity Analyzer Precision Matter Filter Advanced Kinecellerator Experimental Weapon Cycler Advanced Reaction Control System Experimental Phase Shifter Experimental Utility Shielding Experimental Powered Armor Experimental Powered Armor AEGIS Remote Shield > --- WEAPON (2) ------- Blast Cannon > --- INVENTORY (10) --- Superbattery (2000) Experimental Matter Compressor (500) Experimental Matter Compressor (196) Experimental Weapon Shielding Hypervelocity Multirail Omega Cannon Sigix Corpse Peak State ------------ > --- POWER ------------ Zero-point Reactor Zero-point Reactor Zero-point Reactor > --- PROPULSION ------- Combat Linear Gravjet Combat Linear Gravjet Combat Linear Gravjet Combat Linear Gravjet Combat Linear Gravjet > --- UTILITY ---------- Desublimator Large Storage Unit Zionite Metafield Generator Experimental Targeting Computer Experimental Targeting Computer Experimental Armor Integrity Analyzer Precision Matter Filter Advanced Kinecellerator Experimental Weapon Cycler Advanced Reaction Control System Experimental Phase Shifter Experimental Utility Shielding Experimental Weapon Shielding Experimental Powered Armor Experimental Powered Armor AEGIS Remote Shield > --- WEAPON ----------- Omega Cannon > --- INVENTORY -------- Superbattery Experimental Matter Compressor Experimental Matter Compressor Experimental Propulsion Shielding Experimental Weapon Shielding Mobile Refinery Mk. CCLXVII Integrity Redistributor Hypervelocity Multirail Blast Cannon [Rating: 242] Favorites ----------- Power Zero-point Reactor Engine Makeshift Power Source Power Core Light Nuclear Core Reactor Zero-point Reactor Propulsion Combat Linear Gravjet Treads Light Treads Leg Aluminum Leg Wheel Compact Wheel Hover Unit Combat Linear Gravjet Flight Unit Cooled Nuclear Pulse Thruster Utility Large Storage Unit Device Zionite Metafield Generator Storage Large Storage Unit Processor Experimental Signal Interpreter Hackware Makeshift Hacking Suite Protection Experimental Utility Shielding Artifact Matter Drive Weapon CR-A16's Behemoth Slayer Energy Gun Lightning Gun Energy Cannon EMDS Ballistic Gun Assault Rifle Ballistic Cannon Omega Cannon Launcher Mini Smartbomb Launcher Special Weapon Improved Plasma Cutter Slashing Weapon Makeshift Axe Piercing Weapon CR-A16's Behemoth Slayer Special Melee Weapon Advanced Datajack Build | -11 -10 -10 -10 -9 -8 -7 -7 -7 -7 -6 -6 -6 -6 -6 -6 -6 -6 -5 -5 -5 -5 -5 -5 -5 -4 -4 -4 -4 -4 -4 -4 -3 -3 -3 -3 -2 -2 -1 -1 -1 ------- Run | Scr Mat Min Exi Min Mat Fac Low Low Dat Pro Fac Was Fac Low Low Zio Dee Pro Fac Was Fac Upp Upp Zhi Pro Fac Was Fac Upp Upp War Pro Res Qua Sec Res Tes Acc Com Ac0 Slots Evolved 18 | . . . . . 4 2 . . . . 2 . . . . . . . 2 . . . . . . 2 . . . . . . 2 . . 2 . 2 . . Power 1 | . . . . . . . . . . . 1 . . . . . . . . . . . . . . . . . . . . . . . . . . . . . Propulsion 3 | . . . . . 1 . . . . . 1 . . . . . . . . . . . . . . . . . . . . . . . . . . 1 . . Utility 14 | . . . . . 3 2 . . . . . . . . . . . . 2 . . . . . . 2 . . . . . . 2 . . 2 . 1 . . Weapon . | . . . . . . . . . . . . . . . . . . . . . . . . . . . . . . . . . . . . . . . . . Parts Attached 917 | . 12 3 15 2 58 68 26 4 2 9 29 . 14 2 2 24 31 10 17 4 32 3 4 12 11 36 15 15 3 1 19 8 35 61 70 28 25 49 102 56 Power 24 | . 2 . 3 . 1 1 1 . . . 2 . 1 . . . 1 . . . . . . . . 2 1 1 . . 1 . 2 . 1 . . . 4 . Engine 6 | . 2 . 1 . 1 1 1 . . . . . . . . . . . . . . . . . . . . . . . . . . . . . . . . . Core 5 | . . . 1 . . . . . . . 2 . 1 . . . . . . . . . . . . 1 . . . . . . . . . . . . . . Reactor 13 | . . . 1 . . . . . . . . . . . . . 1 . . . . . . . . 1 1 1 . . 1 . 2 . 1 . . . 4 . Propulsion 67 | . 2 2 . . 12 12 6 1 . . 4 . 2 . . . . . 3 . 3 . . . . . . 4 . . . . . 1 . 2 . 6 6 1 Treads 26 | . 2 2 . . 12 8 . . . . . . . . . . . . . . . . . . . . . . . . . . . . . . . . 2 . Leg 1 | . . . . . . 1 . . . . . . . . . . . . . . . . . . . . . . . . . . . . . . . . . . Wheel 2 | . . . . . . 2 . . . . . . . . . . . . . . . . . . . . . . . . . . . . . . . . . . Hover 18 | . . . . . . . . . . . . . . . . . . . . . . . . . . . . 4 . . . . . 1 . 2 . 6 4 1 Flight 20 | . . . . . . 1 6 1 . . 4 . 2 . . . . . 3 . 3 . . . . . . . . . . . . . . . . . . . Utility 450 | . 3 . 1 . 13 17 15 2 1 4 14 . 6 2 2 10 21 5 9 4 27 3 4 6 9 24 12 10 2 1 11 7 24 31 36 14 8 20 58 14 Device 247 | . . . . . . 4 5 1 . 2 8 . 4 1 1 5 10 3 3 1 16 2 3 3 5 13 10 9 1 1 6 7 12 23 26 8 4 10 29 11 Storage 38 | . 3 . 1 . 7 . 1 . . . 1 . . . . 2 3 . 1 . 4 . . 1 1 1 . . . . 1 . 3 . . 1 . 2 5 . Processor 14 | . . . . . 1 1 . . . . 2 . . . . . . . . 1 . . 1 . . . . . . . . . 1 . . . . 1 5 1 Hackware 21 | . . . . . . 4 2 . . . 3 . . . . . 1 . 2 . 1 . . . . 2 . . . . . . 2 . . 1 2 1 . . Protection 126 | . . . . . 5 8 7 1 1 2 . . 2 1 1 3 7 2 3 2 6 1 . 2 3 8 2 1 1 . 4 . 6 8 9 4 1 4 19 2 Artifact 4 | . . . . . . . . . . . . . . . . . . . . . . . . . . . . . . . . . . . 1 . 1 2 . . Weapon 376 | . 5 1 11 2 32 38 4 1 1 5 9 . 5 . . 14 9 5 5 . 2 . . 6 2 10 2 . 1 . 7 1 9 29 33 12 17 23 34 41 Energy Gun 13 | . . . . . . 9 . . . . . . . . . . . . . . . . . . . . . . . . 2 . . . . . 1 . 1 . Energy Cannon 77 | . . . . . 1 . . . . . . . . . . . 2 2 1 . 1 . . . 1 4 . . 1 . 1 1 3 10 11 4 8 13 13 . Ballistic Gun 83 | . 3 . 7 1 18 20 . . . . . . . . . . . . . . . . . . . . . . . . . . 2 7 . 1 1 5 5 13 Ballistic Cannon 41 | . . . . . . . . . . . . . . . . . . . . . . . . . . . . . . . . . 1 1 . . 1 . 10 28 Launcher 62 | . 2 1 4 1 13 2 2 . . 1 2 . 3 . . 7 2 1 1 . . . . 1 . . 1 . . . 2 . 2 3 11 . . . . . Special Weapon 6 | . . . . . . . . . . . 1 . . . . . . . 1 . . . . 1 . 1 . . . . . . . . . . . . 2 . Impact Weapon . | . . . . . . . . . . . . . . . . . . . . . . . . . . . . . . . . . . . . . . . . . Slashing Weapon 32 | . . . . . . 7 2 1 1 4 4 . . . . 3 1 . . . . . . 2 . . . . . . 1 . . 2 1 2 1 . . . Piercing Weapon 61 | . . . . . . . . . . . 2 . 2 . . 4 4 2 2 . 1 . . 2 1 4 1 . . . 1 . 1 6 10 5 5 5 3 . Special Melee Weapon 1 | . . . . . . . . . . . . . . . . . . . . . . . . . . 1 . . . . . . . . . . . . . . Unidentified Prototypes 71 | . . . 3 . 2 3 . . . . . . . . . 1 8 . . . . . 1 3 . . . . . . 6 . 1 11 7 7 6 . 10 2 Parts Lost 32 | . 3 . . . 3 15 1 1 . . . . 1 . . . 3 1 1 . . . . 2 . . . . 1 . . . . . . . . . . . Power 7 | . 2 . . . . 2 . . . . . . 1 . . . 1 . . . . . . 1 . . . . . . . . . . . . . . . . Propulsion 8 | . . . . . 2 5 1 . . . . . . . . . . . . . . . . . . . . . . . . . . . . . . . . . Utility 9 | . . . . . . 4 . 1 . . . . . . . . 2 1 1 . . . . . . . . . . . . . . . . . . . . . Weapon 8 | . 1 . . . 1 4 . . . . . . . . . . . . . . . . . 1 . . . . 1 . . . . . . . . . . . Highest Loss Streak 6 | . 1 . . . 2 6 1 1 . . . . 1 . . . 3 1 1 . . . . 2 . . . . 1 . . . . . . . . . . . Average Slot Usage (%) 90 | . 92 99 85 85 97 94 90 85 89 85 92 93 93 100 100 98 87 86 95 100 92 88 83 76 77 81 84 86 96 100 96 95 95 94 94 91 92 95 70 95 Engine 3 | . 10 14 13 14 8 6 6 7 7 7 6 6 2 . . . . . . . . . . . . . . . . . . . . . . . . . . . Core 2 | . . . . . . . . . . . 5 6 10 13 13 13 4 . 3 5 5 5 5 2 . 2 5 5 5 5 1 . . . . . . . . . Reactor 4 | . . . . . . . . . . . . . . . . . 4 6 5 5 5 5 5 5 5 5 5 5 10 10 10 10 9 13 13 12 12 11 7 11 Treads 6 | . 25 27 28 28 26 20 . . . . . . . . . . . . . . . . . . . . . . . . . . . . . . . . 1 . Hover 6 | . . . . . . . . . . . . . . . . . . . . . . . . . . . . 2 20 20 20 20 18 17 18 16 16 19 17 19 Flight 8 | . . . . . . . 21 23 23 23 26 26 26 26 26 26 26 26 23 23 15 11 11 11 11 10 10 8 . . . . . . . . . . . . Device 9 | . . . . . . 1 6 6 5 6 5 6 5 5 6 3 9 5 14 5 15 20 22 14 19 18 15 15 14 15 18 20 16 17 18 21 17 17 12 26 Storage 11 | . 24 28 14 14 29 17 7 7 7 7 6 6 6 6 6 6 6 6 9 5 10 11 11 14 12 10 10 10 10 10 10 10 9 9 9 9 12 11 6 3 Processor 5 | . . . . . 5 7 7 7 7 7 6 6 6 6 6 6 6 6 5 5 5 5 5 5 5 5 5 5 5 5 5 5 4 4 4 4 4 3 9 13 Hackware 11 | . . . . . . 16 28 23 23 23 25 26 26 26 26 11 6 13 13 23 17 12 11 11 11 16 20 20 20 20 13 10 18 15 13 12 14 16 2 . Protection 5 | . . . . . 8 4 1 1 6 7 . . . . . 16 15 13 5 11 . 1 . 3 1 4 3 5 5 5 8 10 9 8 7 6 4 4 8 16 Ballistic Gun 4 | . 28 14 18 27 17 12 . . . . . . . . . . . . . . . . . . . . . . . . . . . 1 . . . . . . Launcher 2 | . . 13 9 . . . . . . . . . . 6 6 7 . . . . . . . . 5 2 . . . . 1 4 . . 3 . . . . . Piercing Weapon 2 | . . . . . . . . . . . 1 6 5 6 6 2 2 6 4 5 4 5 5 3 2 4 4 5 5 5 4 5 3 2 3 1 3 2 . . Naked Turns . | . . . . . . . . . . . . . . . . . . . . . . . . . . . . . . . . . . . . . . . . . Heaviest Build 182 | 12 39 40 96 95 145 113 95 21 21 17 29 29 35 35 35 48 42 34 45 45 62 65 56 71 63 66 64 81 93 93 116 116 127 136 137 154 145 172 182 163 Greatest Support 170 | 20 40 42 42 42 62 62 60 19 19 17 31 31 42 47 35 47 39 47 47 47 66 66 66 66 66 78 66 128 128 128 128 128 128 128 138 138 138 170 170 170 Greatest Overweight (x) 5 | . . . 2 2 2 5 1 1 1 . . . . 4 . 1 1 . . . . . . 4 . . . 1 . . . . . 1 1 1 1 1 4 . Average Overweight (x) . | . . . 1 2 1 1 . . . . . . . . . . . . . . . . . . . . . . . . . . . . . . . . . . Largest Inventory Capacity 42 | . 16 16 24 24 42 26 24 8 8 8 10 10 10 10 10 10 10 10 10 10 16 16 16 16 16 16 16 16 16 16 16 16 24 16 16 22 22 24 22 10 Average Capacity 15 | . 7 16 23 24 28 21 8 8 8 8 8 10 10 10 10 7 7 10 10 10 13 16 16 16 16 16 16 16 16 16 16 16 16 16 16 18 22 22 14 10 Most Carried 32 | . 9 16 24 24 32 26 20 8 8 8 10 10 10 10 10 10 10 10 10 10 16 16 16 16 16 16 16 16 16 15 16 16 16 16 16 22 22 24 22 10 Average Carried 14 | . 6 13 20 24 26 21 8 7 7 7 8 10 9 9 9 6 7 9 9 10 13 15 15 15 15 15 15 15 15 15 15 15 15 15 15 17 21 21 12 9 Final Capacity 26 | 6 16 16 24 24 26 20 8 8 8 8 10 10 10 10 10 10 10 10 10 10 16 16 16 16 16 16 16 16 16 16 16 16 16 16 16 22 22 22 10 10 Final Carried 26 | 6 9 16 24 24 26 20 7 8 8 8 10 10 10 10 10 10 10 9 10 10 16 15 16 16 16 16 16 16 15 15 16 16 15 16 16 21 22 22 10 8 Class Distribution -------------------- 23% | Hacker-Sprinter 19% | Generator-Sprinter 14% | Hauler-Mutant 11% | Generator-Mutant 9% | Hacker-Mutant 6% | Machinist-Sprinter 6% | Scavenger-Mutant 5% | Mutant Dominant Class ---------------- Mutant | -10/Materials Mutant | -10/Mines Hauler-Mutant | -10/Exiles Hauler-Mutant | -9/Mines Hauler-Mutant | -8/Materials Scavenger-Mutant | -7/Factory Hacker-Sprinter | -7/Lower Caves Hacker-Sprinter | -7/Lower Caves Hacker-Mutant | -7/Data Miner Hacker-Sprinter | -6/Proximity Caves Hacker-Sprinter | -6/Factory Hacker-Sprinter | -6/Waste Hacker-Sprinter | -6/Factory Hacker-Sprinter | -6/Lower Caves Hacker-Sprinter | -6/Lower Caves Hacker-Mutant | -6/Zion Machinist-Sprinter | -6/Deep Caves Hacker-Sprinter | -5/Proximity Caves Hacker-Sprinter | -5/Factory Hacker-Sprinter | -5/Waste Hacker-Sprinter | -5/Factory Hacker-Sprinter | -5/Upper Caves Hacker-Sprinter | -5/Upper Caves Hacker-Sprinter | -5/Zhirov Hacker-Mutant | -4/Proximity Caves Hacker-Sprinter | -4/Factory Hacker-Mutant | -4/Waste Hacker-Mutant | -4/Factory Hacker-Sprinter | -4/Upper Caves Hacker-Sprinter | -4/Upper Caves Generator-Sprinter | -4/Warlord Generator-Sprinter | -3/Proximity Caves Hacker-Sprinter | -3/Research Machinist-Sprinter | -3/Quarantine Generator-Sprinter | -3/Section 7 Generator-Sprinter | -2/Research Generator-Sprinter | -2/Testing Generator-Sprinter | -1/Access Generator-Mutant | -1/Command Generator-Sprinter | -1/Access_0 Resources | -11 -10 -10 -10 -9 -8 -7 -7 -7 -7 -6 -6 -6 -6 -6 -6 -6 -6 -5 -5 -5 -5 -5 -5 -5 -4 -4 -4 -4 -4 -4 -4 -3 -3 -3 -3 -2 -2 -1 -1 -1 ----------- Run | Scr Mat Min Exi Min Mat Fac Low Low Dat Pro Fac Was Fac Low Low Zio Dee Pro Fac Was Fac Upp Upp Zhi Pro Fac Was Fac Upp Upp War Pro Res Qua Sec Res Tes Acc Com Ac0 Matter Collected 24342 | 196 411 96 790 14 1485 1733 270 95 . 59 440 . 153 439 33 1668 355 190 135 70 261 49 89 131 136 258 378 80 102 23 500 120 992 1530 1321 1036 280 978 4046 3400 Remotely . | . . . . . . . . . . . . . . . . . . . . . . . . . . . . . . . . . . . . . . . . . Salvage Created 29816 | . 523 77 413 24 2135 2619 59 . . 56 1060 143 247 115 20 1713 169 211 828 . 784 . 264 338 225 253 . 129 42 62 646 307 1164 1081 1896 1965 192 3059 3851 3146 Parts 1421 | . 37 4 63 5 159 135 7 . . 7 33 8 9 . 2 109 11 12 22 . 16 . 10 7 6 18 . 6 . 2 16 12 47 48 81 69 7 152 144 157 Haulers Intercepted 39 | . 2 . . . 3 7 . . . . 4 . 1 . . . . . 2 . 4 . . . . 1 . . . . . . 2 . 1 4 1 7 . . Recyclers Shooed 17 | . 5 . . . 1 4 . . . . 1 . 1 . . . . . 1 . 1 . . . . . . . . . . . . . . . . 1 2 . Parts Field Recycled . | . . . . . . . . . . . . . . . . . . . . . . . . . . . . . . . . . . . . . . . . . Retrieved Matter . | . . . . . . . . . . . . . . . . . . . . . . . . . . . . . . . . . . . . . . . . . Parts Self-Destructed 89 | . . . . . . . 8 4 . 2 . . . 4 1 . . 11 . . . . 2 7 6 . . . 5 . 16 23 . . . . . . . . Prevented 5 | . . . . . . . . . . . . . . . . . . . . . . . . . . . . . 4 . 1 . . . . . . . . . Kills | -11 -10 -10 -10 -9 -8 -7 -7 -7 -7 -6 -6 -6 -6 -6 -6 -6 -6 -5 -5 -5 -5 -5 -5 -5 -4 -4 -4 -4 -4 -4 -4 -3 -3 -3 -3 -2 -2 -1 -1 -1 ------- Run | Scr Mat Min Exi Min Mat Fac Low Low Dat Pro Fac Was Fac Low Low Zio Dee Pro Fac Was Fac Upp Upp Zhi Pro Fac Was Fac Upp Upp War Pro Res Qua Sec Res Tes Acc Com Ac0 Combat Hostiles Destroyed 341 | . 14 2 3 3 56 32 4 . . 4 3 . . 5 4 8 4 5 . . 1 . . . 5 . . 1 . . 21 6 5 11 16 14 . 20 45 49 Melee 15 | . . . . . . . 1 . . . . . . . . . . . . . 1 . . . . . . . . . 1 1 . 4 2 1 . 2 2 . Guns 134 | . 13 . 1 1 23 29 . . . . . . . . . . . . . . . . . . . . . . . . . . 1 3 . . . 11 23 29 Cannons 41 | . . . . . . . . . . . . . . . . . . . . . . . . . . . . . . . . 1 . . 5 5 . 2 11 17 AOE 112 | . 1 2 2 2 33 3 3 . . 4 3 . . 5 4 6 4 4 . . . . . . 4 . . . . . 20 4 3 2 . . . . . 3 Classes Destroyed 28 | . 5 . 3 1 5 2 . . . . . 1 . 1 . 4 . . . . . . 1 . . . . . 1 . 2 . . 1 . 1 . . . . Worker 24 | . . . . 1 4 5 . . . . 2 . . . . . . . . . . . . . . 1 . . . . . . 1 . 1 . . 3 6 . Builder 12 | . . . . . 5 4 . . . . . . . . . . . . . . . . . . . . . . . . . . 2 . . . 1 . . . Tunneler 1 | . . . . . . . . . . . . . . . . . . . . . . . . . . . . . . . . . . . . 1 . . . . Hauler 39 | . 2 . . . 3 7 . . . . 4 . 1 . . . . . 2 . 4 . . . . 1 . . . . . . 2 . 1 4 1 7 . . Recycler 29 | . . . . . 5 6 . . . . 3 . 1 . . . . . 4 . 2 . . . . . . . . . . . 2 . 2 . . 2 2 . Mechanic 2 | . . . . . . . . . . . . . . . . . . . . . . . . . . 1 . . . . . . 1 . . . . . . . Operator 13 | . 1 . . . 3 1 . . . . 1 . . . . . . . 1 . 1 . . . . 1 . . . . . . . . . 1 . 2 1 . Turret 1 | . . . 1 . . . . . . . . . . . . . . . . . . . . . . . . . . . . . . . . . . . . . Watcher 52 | . 2 . . . 3 4 . . . . 4 . 1 . . . . . 2 . 2 . . . . 2 . . . . . 2 7 2 4 5 2 7 3 . Swarmer 63 | . 6 . . 3 22 . 3 . . 4 . . . . 4 . . . . . . . . . . . . . . . 3 4 3 1 . . . 1 9 . Saboteur 3 | . . . . . . . . . . . . . . . . . . . . . . . . . . . . . . . 3 . . . . . . . . . Grunt 95 | . 8 2 . . 22 18 . . . . 2 . . 3 . . . 3 . . . . . . 4 . . . . . 11 . . 1 7 5 . 1 8 . Brawler 6 | . . . . . . 1 . . . . . . . 1 . . . 1 . . . . . . . . . . . . . . . 1 . . . 2 . . Duelist 6 | . . . . . 1 1 . . . . 1 . . . . . . . . . . . . . . . . . . . 1 1 . . . 1 . . . . Protector 1 | . . . . . . . . . . . . . . . . . . . . . . . . . . . . . . . 1 . . . . . . . . . Researcher 1 | . . . . . . . . . . . . . . . . . . . . . . . 1 . . . . . . . . . . . . . . . . . Sentry 36 | . . . . . 10 5 . . . . . . . . . . . . . . 1 . . . . . . . . . . 1 1 . 4 5 . 5 4 . Demolisher 2 | . . . . . . . . . . . . . . . . . . . . . . . . . . . . . . . . . . . . . . . 2 . Hunter 12 | . . . . . 1 2 . . . . . . . . . . . . . . . . . . . . . . . . 1 . . . . . . 2 6 . Programmer 29 | . . . . . . 5 1 . . . . . . . . . . . . . . . . . . . . . . . 1 . 1 . 2 . . 8 11 . Behemoth 10 | . . . . . . . . . . . . . . . . . . 1 . . . . . . 1 . . 1 . . . . 1 . 2 3 . 1 . . Quarantine Guard 5 | . . . . . . . . . . . . . . . . . . . . . . . . . . . . . . . . . . 5 . . . . . . S7 Guard 1 | . . . . . . . . . . . . . . . . . . . . . . . . . . . . . . . . . . . 1 . . . . . M Guard 2 | . . . . . . . . . . . . . . . . . . . . . . . . . . . . . . . . . . . . . . . 2 . Enhanced Grunt 34 | . . . . . . . . . . . . . . . . . 1 . . . . . . 1 . . . . . . . . . . . . . . . 32 Enhanced Sentry 2 | . . . . . . . . . . . . . . . . . . . . . . . . . . . . . . . . . . . . . . . . 2 Enhanced Hunter 8 | . . . . . . . . . . . . . . . . . . . . . . . . . . . . . . . . . . . . . . . . 8 Lightning 2 | . . . . . . . . . . . . . . . . . . . . . . . . . . . . . . . . . . 2 . . . . . . Combat Programmer 2 | . . . . . . . . . . . . . . . . . . . . . . . . . . . . . . . . . . . . . . . 2 . Fortress 1 | . . . . . . . . . . . . . . . . . . . . . . . . . . . . . . . . . . 1 . . . . . . Zionite 60 | . . . 8 . . . . . . . . . . . . 52 . . . . . . . . . . . . . . . . . . . . . . . . Z-Technician 5 | . . . . . . . . . . . . . . . . . 5 . . . . . . . . . . . . . . . . . . . . . . . Decomposer 1 | . . . . . . . . . . . . . . . . . . . . . . . . . . . . . . 1 . . . . . . . . . . Packrat 1 | . . . . . . . . . . . . . . 1 . . . . . . . . . . . . . . . . . . . . . . . . . . Samaritan 2 | . . . . . . . . . . . . . . . . . . . . . . . . . . . . . 1 1 . . . . . . . . . . Tinkerer 5 | . . . . . . . . . . . . . . . . 5 . . . . . . . . . . . . . . . . . . . . . . . . Thief 1 | . . . . . . . . . . . . . . 1 . . . . . . . . . . . . . . . . . . . . . . . . . . Assembled 6 | . . . 2 . . . . . . . . . . . . . 4 . . . . . . . . . . . . . . . . . . . . . . . Surgeon 1 | . . . . . . . . . . . . . . . . 1 . . . . . . . . . . . . . . . . . . . . . . . . Thug 2 | . . . . . . . . . . . . . . . . 1 . . . . . . . . . . . . . . . . . . . 1 . . . . Butcher 2 | . . . . . . . . . . . . . . . . . . . . . . . 1 . . . . . . . . . . . . . . . 1 . Martyr 2 | . . . . . . . . . . . . 2 . . . . . . . . . . . . . . . . . . . . . . . . . . . . Marauder 2 | . . . . . . . . . . . . . . . . 2 . . . . . . . . . . . . . . . . . . . . . . . . Mutant 5 | . . . . . . . . . . . . . . . . 5 . . . . . . . . . . . . . . . . . . . . . . . . Best Kill Streak 16 | . 5 2 3 3 11 7 3 . . 4 3 . 1 4 4 9 5 4 4 . 3 . . . 4 2 . 1 . . 16 6 4 2 5 4 2 5 11 9 Combat Bots Only 16 | . 5 2 2 2 7 4 3 . . 4 3 . . 4 4 2 4 4 . . 1 . . . 4 . . 1 . . 16 4 3 2 5 2 . 3 11 9 Max Kills in Single Turn 4 | . 1 1 2 1 4 2 2 . . 4 2 1 1 1 2 2 2 3 1 . 1 . 1 1 2 1 . 1 1 1 4 3 2 2 1 1 1 1 2 2 Gunslinging . | . . . . . . . . . . . . . . . . . . . . . . . . . . . . . . . . . . . . . . . . . Exploded 4 | . 1 1 2 1 4 2 2 . . 4 2 . . 1 2 1 2 3 . . . . . . 2 . . . . . 4 3 2 2 . . . . . 1 Melee 1 | . . . . . . . 1 . . . . . . . . . . . . . 1 . . . . . . . . . 1 1 . 1 1 1 . 1 1 . Uniques/NPCs Destroyed 13 | . . . 4 . . . . . . . . . . . . . 1 . . . . . . . . . . . . . . . . . . . . . 1 7 8R-AWN (-10/Exiles) EX-DEC (-10/Exiles) EX-BIN (-10/Exiles) EX-HEX (-10/Exiles) Z-Imprinter (-6/Deep Caves) MAIN.C (-1/Command) A8 (-1/Access_0) A6 (-1/Access_0) A5 (-1/Access_0) A4 (-1/Access_0) A2 (-1/Access_0) A3 (-1/Access_0) Architect (-1/Access_0) Combat | -11 -10 -10 -10 -9 -8 -7 -7 -7 -7 -6 -6 -6 -6 -6 -6 -6 -6 -5 -5 -5 -5 -5 -5 -5 -4 -4 -4 -4 -4 -4 -4 -3 -3 -3 -3 -2 -2 -1 -1 -1 -------- Run | Scr Mat Min Exi Min Mat Fac Low Low Dat Pro Fac Was Fac Low Low Zio Dee Pro Fac Was Fac Upp Upp Zhi Pro Fac Was Fac Upp Upp War Pro Res Qua Sec Res Tes Acc Com Ac0 Damage Taken 14278 | . 675 10 236 218 2107 3571 232 15 88 49 18 . 60 20 88 189 419 194 74 . . . . 276 120 289 . . 172 . 44 . 977 724 141 111 124 363 717 1957 Core 1330 | . 140 . 18 7 125 348 44 . 45 31 . . 10 . . . 39 . . . . . . 10 18 18 . . 18 . . . 70 73 13 . 20 48 122 113 Absorbed by Shields 3881 | . . . . . . . . . . . . . . . . . . . . . . . . . . . . . . . . . 19 480 153 117 128 368 707 1909 Core Remaining (%) 78 | 100 . . . 34 77 . . . . 33 . . . . . . . 94 . . . . . . 97 . . . . . . 96 . . 100 . 98 . . 51 Volleys Fired 1697 | . 67 10 66 9 106 166 2 . . 1 4 . 3 9 3 165 14 5 5 5 2 . 9 2 30 7 . . 1 11 23 9 51 121 56 72 9 156 243 255 Largest 2 | . 2 1 2 2 2 2 1 . . 1 1 . 1 1 1 1 1 1 1 1 1 . 1 1 1 1 . . 1 1 1 1 1 1 1 1 1 1 1 1 Hottest 300 | . 40 30 40 40 50 110 45 . . 45 80 . 80 80 80 80 90 90 90 20 90 . 20 20 90 90 . . 110 110 110 110 110 300 120 70 150 200 120 120 Shots Fired 2024 | . 131 10 108 13 179 312 2 . . 1 4 . 2 9 3 165 14 5 5 5 2 . 9 2 30 7 . . 1 11 23 9 51 120 56 72 9 156 243 255 Gun 950 | . 128 7 88 9 146 310 . . . . . . . . . . . . . . . . . . . . . . . . . . 8 76 . . . 43 62 73 Cannon 754 | . . . . . . . . . . . . . . . . . 10 2 5 . 2 . . . 23 7 . . 1 11 8 6 41 41 56 72 9 113 165 182 Launcher 287 | . 3 3 20 4 33 2 2 . . 1 3 . 2 9 3 165 4 3 . . . . . . 7 . . . . . 15 3 2 3 . . . . . . Special 33 | . . . . . . . . . . . 1 . . . . . . . . 5 . . 9 2 . . . . . . . . . . . . . . 16 . Kinetic 1192 | . 128 7 88 9 146 278 . . . . . . . . . . . . . . . . . . . . . . . . . . 11 76 . . . 43 151 255 Thermal 291 | . . . . . . . . . . . . . . . . . 10 2 5 5 2 . 9 2 23 7 . . 1 11 8 6 38 36 8 . 5 91 22 . Explosive 149 | . 3 3 20 4 33 2 2 . . 1 3 . 2 9 3 27 4 3 . . . . . . 7 . . . . . 15 3 2 3 . . . . . . Electromagnetic 390 | . . . . . . 32 . . . . . . . . . 138 . . . . . . . . . . . . . . . . . 5 48 72 4 22 69 . Robot Hit Streak 52 | . 14 12 12 3 17 52 13 . . 3 4 . . 6 . 9 9 . . 4 . . 2 3 . . . . . . . 2 6 11 11 16 5 15 18 46 Robot Miss Streak 7 | . 3 1 2 2 3 5 1 . . 3 . . . . . 2 . . . 1 . . 2 . . . . . . 1 . . 3 3 3 4 1 4 7 7 Penetration Max 3 | . . . . . . . . . . . . . . . . . . . . . . . . . . . . . . . . . 1 . 1 1 . 2 3 1 Secondary Targets 10 | . 3 . 1 . 1 5 . . . . . . . . . . . . . . . . . . . . . . . . . . . . . . . . . . Max Gunslinging Chain 1 | . 1 . 1 . 1 1 . . . . . . . . . . . . . . . . . . . . . . . . . . . . . . . . . . Shots Hit Robots 1559 | . 90 9 63 5 133 266 3 . 1 1 24 3 6 3 . 64 30 1 17 4 20 . 9 25 1 12 . 2 2 4 4 8 22 150 46 40 8 107 142 234 Core Hits 1325 | . 39 10 39 5 122 127 7 . . 7 20 2 6 13 4 81 16 8 10 . 10 . 6 10 10 6 . . 1 2 63 12 21 54 23 30 5 42 265 249 Critical Hits 307 | . 2 . . . 1 1 . . . . 2 . . . . . 1 . 4 . 4 . 3 . . 1 . . . 2 1 3 8 15 13 7 . 60 86 93 Critical Kills 116 | . 1 . . . . . . . . . 1 . . . . . 1 . 3 . 2 . 1 . . 1 . . . 1 1 2 5 6 5 3 . 22 30 31 Critical Parts Destroyed 155 | . 1 . . . 1 1 . . . . 1 . . . . . . . 1 . 2 . 2 . . . . . . 1 . 1 3 6 4 3 . 31 50 47 Melee Attacks 970 | . . . . . . 11 8 5 5 3 82 4 33 70 4 151 44 11 29 . 34 . 5 23 4 27 . 20 4 6 5 19 44 146 47 10 17 75 24 . Impact . | . . . . . . . . . . . . . . . . . . . . . . . . . . . . . . . . . . . . . . . . . Slashing 255 | . . . . . . 11 8 5 5 3 52 . . . . 23 27 . . . . . . 19 . . . . . . 3 . . 99 . . . . . . Piercing 714 | . . . . . . . . . . . 30 4 33 70 4 128 17 11 29 . 34 . 5 4 4 26 . 20 4 6 2 19 44 47 47 10 17 75 24 . Sneak Attacks 128 | . . . . . . 1 . . 1 . 10 3 3 1 . 1 21 . 4 . 6 . 3 16 1 4 . 1 2 3 3 . 11 . 9 3 2 15 4 . Combat Hostiles 10 | . . . . . . . . . . . . . . . . . 1 . . . 1 . . . 1 . . 1 . . . . 1 . 2 2 . 1 . . Follow-up Attacks . | . . . . . . . . . . . . . . . . . . . . . . . . . . . . . . . . . . . . . . . . . Damage Inflicted 81322 | . 1167 266 1342 359 5354 5694 411 . 148 243 2655 383 667 1184 606 4752 1461 634 1906 84 1920 . 708 580 1054 1059 . 59 341 625 4418 1053 2855 2336 3365 2629 733 5212 7499 15560 Guns 11212 | . 938 88 756 42 1762 5056 . . . . . . . . . . . . . . . . . . . . . . . . . . 77 346 . . . 361 766 1020 Cannons 22495 | . . . . . . . . . . . . . . . . . . . . . . . . . . . . . . . . 79 . 124 1554 2212 126 549 5055 12796 Explosions 22329 | . 204 129 586 270 3586 384 338 . . 243 485 . 101 1055 606 4452 400 634 106 . . . . . 1054 . . . . . 4301 606 521 524 . . . . . 1744 Melee 24241 | . . . . . . 157 73 . 148 . 2170 383 566 129 . 300 1061 . 1800 . 1920 . 606 542 . 1059 . 59 341 625 117 368 2257 1342 1811 417 607 4302 1081 . Ramming 576 | . 25 49 . 47 6 97 . . . . . . . . . . . . . . . . . . . . . . . . . . . . . . . . 352 . Kinetic 27829 | . 938 88 756 42 1762 4518 . . . . . . . . . . . . . . . . . . . . . . . . . . 77 346 . . . 361 3381 15560 Thermal 1112 | . . . . . 187 . . . . . . . . . . 70 . . . 84 . . 102 38 . . . . . . . 217 . . . . 44 125 245 . Explosive 17476 | . 204 129 586 270 3399 384 338 . . 243 485 . 101 1055 606 1668 400 634 106 . . . . . 1054 . . . . . 4301 468 521 524 . . . . . . Electromagnetic 10088 | . . . . . . 538 . . . . . . . . . 2714 . . . . . . . . . . . . . . . . . 124 1554 2212 82 424 2440 . Impact . | . . . . . . . . . . . . . . . . . . . . . . . . . . . . . . . . . . . . . . . . . Slashing 2356 | . . . . . . 157 73 . 148 . 1246 . . . . 97 171 . . . . . . 177 . . . . . . 33 . . 254 . . . . . . Piercing 21885 | . . . . . . . . . . . 924 383 566 129 . 203 890 . 1800 . 1920 . 606 365 . 1059 . 59 341 625 84 368 2257 1088 1811 417 607 4302 1081 . Highest Corruption 9 | . 3 3 3 3 . 6 6 6 6 6 1 9 9 9 9 9 . 3 . . 1 1 1 1 1 . . . . . . . 3 8 8 . . . . . Average Corruption 5 | . 1 3 3 3 . 4 6 6 6 6 1 7 9 9 9 9 . 2 . . 1 1 1 1 1 . . . . . . . 2 6 8 . . . . . Corruption Purged . | . . . . . . . . . . . . . . . . . . . . . . . . . . . . . . . . . . . . . . . . . Effects 446 | . 8 14 56 14 . 67 12 8 4 4 4 4 21 104 9 3 . 1 . . 2 . . . 2 . . . . . . . . 59 50 . . . . . Message Errors 102 | . 1 3 10 3 . 16 1 1 1 1 2 3 2 27 5 . . . . . . . . . 1 . . . . . . . . 10 15 . . . . . Matter Fused 82 | . 2 4 15 1 . 6 3 1 1 1 . . 8 22 . 1 . . . . . . . . . . . . . . . . . 9 8 . . . . . Heat Flow Errors 55 | . 1 1 7 1 . 10 3 2 . 1 . . 1 18 2 . . . . . . . . . . . . . . . . . . 4 4 . . . . . Energy Discharges 53 | . 1 4 5 2 . 10 2 . 1 1 . . 1 9 2 1 . . . . . . . . . . . . . . . . . 10 4 . . . . . Parts Rejected 2 | . . . . . . . . . . . . . . . . . . . . . . . . . . . . . . . . . . 2 . . . . . . Data Loss (minor) 66 | . 1 2 14 4 . 7 2 1 . . 1 . 5 13 . 1 . 1 . . 2 . . . . . . . . . . . . 7 5 . . . . . Data Loss (major) 13 | . . . . . . 1 . 3 . . . 1 1 3 . . . . . . . . . . . . . . . . . . . 1 3 . . . . . Targeting Errors 66 | . 2 . 4 2 . 14 1 . 1 . 1 . 2 12 . . . . . . . . . . 1 . . . . . . . . 15 11 . . . . . Weapon Failures 7 | . . . 1 1 . 3 . . . . . . 1 . . . . . . . . . . . . . . . . . . . . 1 . . . . . . Overload Shots 1 | . . . . . . . . . . . . . . . . . . . . . . . . . . . . . . . . . . . . . 1 . . . Overflow Damage 5421 | . . . 13 36 65 103 . . 28 . 485 . 162 33 80 286 168 45 439 . 541 . 4 45 76 279 . 4 138 137 78 66 411 60 405 22 70 306 417 419 Projectiles 774 | . . . . . . . . . . . . . . . . . . . . . . . 4 . . . . . . . . . . . 8 22 27 2 292 419 Explosions 672 | . . . 13 36 65 . . . . . . . . 33 80 156 19 45 . . . . . . 76 . . . . . 78 20 15 36 . . . . . . Melee 3975 | . . . . . . 103 . . 28 . 485 . 162 . . 130 149 . 439 . 541 . . 45 . 279 . 4 138 137 . 46 396 24 397 . 43 304 125 . Knockbacks 128 | . . . . . . 1 . . . . . . . . . . . . . . . . . . . . . . . . . . . . . . . . 41 86 Impact 33 | . . . . . . 1 . . . . . . . . . . . . . . . . . . . . . . . . . . . . . . . . 32 . Kinetic 95 | . . . . . . . . . . . . . . . . . . . . . . . . . . . . . . . . . . . . . . . 9 86 Secondary . | . . . . . . . . . . . . . . . . . . . . . . . . . . . . . . . . . . . . . . . . . Self-Inflicted Damage 391 | . 2 . . 33 228 . 20 . . . . . . . . . . . 57 . . . . . . . . . . . 44 . . . . . . . 7 . Shots 11 | . . . . 1 7 . 1 . . . . . . . . . . . 1 . . . . . . . . . . . 1 . . . . . . . . . Rammed 696 | . 6 15 . 6 2 9 . . . . . . . . . . . . . . . . . . . . . . . . . . . . . . . . 658 . Targets Rammed 700 | . 7 15 . 6 2 12 . . . . . . . . . . . . . . . . . . . . . . . . . . . . . . . . 658 . Kicked 1 | . 1 . . . . . . . . . . . . . . . . . . . . . . . . . . . . . . . . . . . . . . . Crushed 3 | . . . . . . 3 . . . . . . . . . . . . . . . . . . . . . . . . . . . . . . . . . . Highest Temperature 309 | . 224 180 266 120 120 286 271 185 1 91 100 . 254 259 309 246 271 138 110 33 198 115 124 62 296 301 204 238 42 218 216 52 112 244 243 . . 13 74 44 Average Temperature 53 | . 36 96 107 68 23 45 110 97 1 47 46 . 100 83 112 31 62 54 30 15 20 55 53 23 96 66 113 129 17 41 30 28 28 63 52 . . 11 25 7 Received Heat Transfer 2493 | . 291 6 . . 648 948 . 9 12 . 6 . 18 9 12 . 114 . 9 . . . . 36 30 . . . 9 . . . 103 27 22 12 . 61 24 87 Effects 9 | . . . 1 . . 2 . . . . . . . 3 . . . . . . . . . . . . 1 2 . . . . . . . . . . . . Interference 9 | . . . 1 . . 2 . . . . . . . 3 . . . . . . . . . . . . 1 2 . . . . . . . . . . . . Siege Activations . | . . . . . . . . . . . . . . . . . . . . . . . . . . . . . . . . . . . . . . . . . Robots Corrupted 36 | . . . . . . . . . . . . . . . . 7 . . . . . . . . . . . . . . . . . 1 7 6 . 4 11 . Combat Hostiles 26 | . . . . . . . . . . . . . . . . . . . . . . . . . . . . . . . . . . 1 7 5 . 4 9 . Parts Fried 90 | . . . . . . 3 . . . . . . . . . 10 . . . . . . . . . . . . . . . . . 5 23 22 . 2 25 . Impact Corruptions 2 | . . . . 1 . 1 . . . . . . . . . . . . . . . . . . . . . . . . . . . . . . . . . . Robots Melted . | . . . . . . . . . . . . . . . . . . . . . . . . . . . . . . . . . . . . . . . . . Combat Hostiles . | . . . . . . . . . . . . . . . . . . . . . . . . . . . . . . . . . . . . . . . . . Parts Melted 1 | . . . . . . . . . . . . . . . . . . . . . . . 1 . . . . . . . . . . . . . . . . . Heat Transferred 933 | . . . . . 150 . . . . . . . . . . . . . . 185 . . 222 74 . . . . . . . 170 . . . . 37 . 95 . Parts Sabotaged . | . . . . . . . . . . . . . . . . . . . . . . . . . . . . . . . . . . . . . . . . . Parts Stolen . | . . . . . . . . . . . . . . . . . . . . . . . . . . . . . . . . . . . . . . . . . Parts Stripped . | . . . . . . . . . . . . . . . . . . . . . . . . . . . . . . . . . . . . . . . . . Power Chain Reactions 11 | . . . . . . . . . . . . . . . . 11 . . . . . . . . . . . . . . . . . . . . . . . . Missiles Intercepted . | . . . . . . . . . . . . . . . . . . . . . . . . . . . . . . . . . . . . . . . . . Alert | -11 -10 -10 -10 -9 -8 -7 -7 -7 -7 -6 -6 -6 -6 -6 -6 -6 -6 -5 -5 -5 -5 -5 -5 -5 -4 -4 -4 -4 -4 -4 -4 -3 -3 -3 -3 -2 -2 -1 -1 -1 ------- Run | Scr Mat Min Exi Min Mat Fac Low Low Dat Pro Fac Was Fac Low Low Zio Dee Pro Fac Was Fac Upp Upp Zhi Pro Fac Was Fac Upp Upp War Pro Res Qua Sec Res Tes Acc Com Ac0 Peak Influence 1307 | . 379 56 . 90 1307 763 . . . . 515 115 504 . . . . . 521 182 674 . . . . 263 113 406 . . . . 466 533 472 1252 880 1038 960 . Initial 704 | . . 47 . . 35 506 . . . . 56 85 16 . . . . . . 182 127 . . . . 75 22 79 . . . . 168 157 58 128 704 200 367 . Average 347 | . 156 42 . 31 647 473 . . . . 109 70 166 . . . . . 197 182 311 . . . . 142 96 198 . . . . 232 236 231 669 666 512 472 . Maximum Alert Level 4 | . 1 . . . 4 3 . . . . 2 . 2 . . . . . 2 . 2 . . . . 1 . 2 . . . . 2 2 2 4 3 3 3 . Low Security (%) 31 | . 70 100 . 100 23 . . . . . 90 100 73 . . . . . 48 100 21 . . . . 75 100 59 . . . . 42 32 26 5 . . 8 . Level 1 27 | . 29 . . . 6 33 . . . . 9 . . . . . . . 42 . 64 . . . . 24 . 33 . . . . 50 54 71 16 2 28 22 . Level 2 24 | . . . . . 24 58 . . . . . . 26 . . . . . 8 . 13 . . . . . . 6 . . . . 6 12 1 38 53 57 24 . Level 3 15 | . . . . . 33 7 . . . . . . . . . . . . . . . . . . . . . . . . . . . . . 18 44 13 44 . Level 4 1 | . . . . . 12 . . . . . . . . . . . . . . . . . . . . . . . . . . . . . . 20 . . . . Level 5 . | . . . . . . . . . . . . . . . . . . . . . . . . . . . . . . . . . . . . . . . . . High Security . | . . . . . . . . . . . . . . . . . . . . . . . . . . . . . . . . . . . . . . . . . Max Security . | . . . . . . . . . . . . . . . . . . . . . . . . . . . . . . . . . . . . . . . . . Squads Dispatched 64 | . 1 1 . . 8 9 . . . . 2 . 1 . . . . . 1 . 2 . . . 1 2 . 5 . . . . 3 2 7 1 7 8 3 . Investigation 16 | . 1 1 . . 2 1 . . . . . . . . . . . . . . 1 . . . . 1 . 4 . . . . 1 1 2 . . 1 . . Extermination 19 | . . . . . . 3 . . . . 1 . 1 . . . . . 1 . 1 . . . . 1 . 1 . . . . 2 . 3 . 1 2 2 . Reinforcement 20 | . . . . . 4 4 . . . . 1 . . . . . . . . . . . . . . . . . . . . . . . 2 1 5 3 . . Assault 7 | . . . . . 1 . . . . . . . . . . . . . . . . . . . 1 . . . . . . . . 1 . . 1 2 1 . Garrison 2 | . . . . . 1 1 . . . . . . . . . . . . . . . . . . . . . . . . . . . . . . . . . . Intercept . | . . . . . . . . . . . . . . . . . . . . . . . . . . . . . . . . . . . . . . . . . Construction Impeded 1 | . . . . . . . . . . . . . . . . . . . . . . . . . . . . . . . . . . . . . . 1 . . Haulers Reinforced 5 | . . . . . . 3 . . . . . . . . . . . . . . . . . . . . . . . . . . . . 1 . . 1 . . Stealth | -11 -10 -10 -10 -9 -8 -7 -7 -7 -7 -6 -6 -6 -6 -6 -6 -6 -6 -5 -5 -5 -5 -5 -5 -5 -4 -4 -4 -4 -4 -4 -4 -3 -3 -3 -3 -2 -2 -1 -1 -1 --------- Run | Scr Mat Min Exi Min Mat Fac Low Low Dat Pro Fac Was Fac Low Low Zio Dee Pro Fac Was Fac Upp Upp Zhi Pro Fac Was Fac Upp Upp War Pro Res Qua Sec Res Tes Acc Com Ac0 Distress Signals 36 | . 4 . . . 1 2 . . . . . . . . . . . . . . . . . . . 2 . . . . . 1 2 . 1 4 3 1 15 . Communications Jammed 136 | . . . . . . . . . . . . . . . . . . . . . . . . . . 1 . . . . . 33 49 . 4 21 20 8 . . Distress Signals 136 | . . . . . . . . . . . . . . . . . . . . . . . . . . 1 . . . . . 33 49 . 4 21 20 8 . . Times Spotted 719 | . 28 2 28 4 74 58 4 8 4 8 14 5 11 16 3 61 5 4 7 . 15 4 . 3 6 11 6 4 6 . 11 7 34 18 22 34 15 41 72 66 Peak Tracking Total 14 | . 5 2 9 4 5 5 3 4 4 6 4 5 5 4 3 5 3 4 2 . 3 4 . 3 9 8 5 1 6 . 12 3 12 3 5 9 3 4 14 6 Tactical Retreats 108 | . 5 . 11 1 2 2 . 6 . 3 5 1 4 3 1 18 . . . . 1 . . . 1 2 . . 1 . 2 . 4 8 4 4 3 7 9 . Traps | -11 -10 -10 -10 -9 -8 -7 -7 -7 -7 -6 -6 -6 -6 -6 -6 -6 -6 -5 -5 -5 -5 -5 -5 -5 -4 -4 -4 -4 -4 -4 -4 -3 -3 -3 -3 -2 -2 -1 -1 -1 ------- Run | Scr Mat Min Exi Min Mat Fac Low Low Dat Pro Fac Was Fac Low Low Zio Dee Pro Fac Was Fac Upp Upp Zhi Pro Fac Was Fac Upp Upp War Pro Res Qua Sec Res Tes Acc Com Ac0 Traps Triggered 30 | . 3 . . . . 2 1 . . . 3 . 1 . . . . . 1 . . . . . . 2 . 1 . . . . . 3 1 . 2 2 8 . Indirectly . | . . . . . . . . . . . . . . . . . . . . . . . . . . . . . . . . . . . . . . . . . Trap Hack Attempts . | . . . . . . . . . . . . . . . . . . . . . . . . . . . . . . . . . . . . . . . . . Triggered . | . . . . . . . . . . . . . . . . . . . . . . . . . . . . . . . . . . . . . . . . . Disarmed 6 | . . . . . . . . . . . . . . . . . . . . . . . . . . . . 6 . . . . . . . . . . . . Reprogrammed 6 | . 6 . . . . . . . . . . . . . . . . . . . . . . . . . . . . . . . . . . . . . . . Reused . | . . . . . . . . . . . . . . . . . . . . . . . . . . . . . . . . . . . . . . . . . Traps Extracted . | . . . . . . . . . . . . . . . . . . . . . . . . . . . . . . . . . . . . . . . . . Installed . | . . . . . . . . . . . . . . . . . . . . . . . . . . . . . . . . . . . . . . . . . Triggered 6 | . . . . . . . . . . . . . . . . . . . . . . . . . . . . . 1 . 4 . 1 . . . . . . . Exploded 3 | . . . 3 . . . . . . . . . . . . . . . . . . . . . . . . . . . . . . . . . . . . . Machines | -11 -10 -10 -10 -9 -8 -7 -7 -7 -7 -6 -6 -6 -6 -6 -6 -6 -6 -5 -5 -5 -5 -5 -5 -5 -4 -4 -4 -4 -4 -4 -4 -3 -3 -3 -3 -2 -2 -1 -1 -1 ---------- Run | Scr Mat Min Exi Min Mat Fac Low Low Dat Pro Fac Was Fac Low Low Zio Dee Pro Fac Was Fac Upp Upp Zhi Pro Fac Was Fac Upp Upp War Pro Res Qua Sec Res Tes Acc Com Ac0 Machines Disabled 107 | . 1 . 9 . 7 4 . . 1 . . . 2 1 . 5 2 . 5 . 1 . . . . 1 . . . . 2 3 . 12 10 5 9 1 8 18 Max in Single Turn 3 | . 1 . 3 . 3 1 . . 1 . . . 2 1 . 1 1 . 3 . 1 . . . . 1 . . . . 2 1 . 2 1 1 1 1 2 1 Garrison Access 20 | . . . . . 1 1 . . . . 1 . 1 . . . . . 1 . 1 . . . . 1 . . . . . . 3 1 . 3 1 5 . . Phase Generator 1 | . . . . . . . . . . . . . . . . . . . . . . . . . . . . . . . . . . . . . . . 1 . Machines Sabotaged . | . . . . . . . . . . . . . . . . . . . . . . . . . . . . . . . . . . . . . . . . . Garrisons Compromised . | . . . . . . . . . . . . . . . . . . . . . . . . . . . . . . . . . . . . . . . . . Overloaded Fab Kills . | . . . . . . . . . . . . . . . . . . . . . . . . . . . . . . . . . . . . . . . . . Fab Network Shutdowns 6 | . . . . . . . . . . . 1 . 1 . . . . . 1 . 1 . . . . . . 1 . . . . . . . 1 . . . . Hacking | -11 -10 -10 -10 -9 -8 -7 -7 -7 -7 -6 -6 -6 -6 -6 -6 -6 -6 -5 -5 -5 -5 -5 -5 -5 -4 -4 -4 -4 -4 -4 -4 -3 -3 -3 -3 -2 -2 -1 -1 -1 --------- Run | Scr Mat Min Exi Min Mat Fac Low Low Dat Pro Fac Was Fac Low Low Zio Dee Pro Fac Was Fac Upp Upp Zhi Pro Fac Was Fac Upp Upp War Pro Res Qua Sec Res Tes Acc Com Ac0 Machines Accessed 259 | . 9 1 2 1 9 17 2 . 4 . 25 . 13 2 . . . . 15 . 15 . . 4 . 10 . 8 . . 10 1 21 19 19 4 9 26 11 2 Terminals 152 | . 8 . . 1 4 11 . . . . 13 . 8 . . . . . 10 . 11 . . . . 5 . 5 . . . 1 9 15 17 3 7 15 9 . Fabricators 25 | . . . . . . 2 . . . . 5 . 3 . . . . . 2 . 1 . . . . 1 . 2 . . . . 4 . . 1 . 4 . . Repair Stations 22 | . 1 . . . 2 1 . . . . 3 . 1 . . . . . 2 . . . . . . 2 . . . . . . 4 2 . . 1 1 2 . Recycling Units 6 | . . . . . 2 . . . . . 2 . . . . . . . . . 1 . . . . . . . . . . . . . . . . 1 . . Scanalyzers 10 | . . . . . . 2 . . . . 1 . . . . . . . . . 1 . . . . 1 . 1 . . . . 1 1 2 . . . . . Garrison Access 17 | . . . . . 1 1 . . . . 1 . 1 . . . . . 1 . 1 . . . . 1 . . . . . . 3 1 . . 1 5 . . Total Hacks 901 | . 33 1 2 2 24 64 2 . 28 . 78 . 52 8 . . . . 42 . 48 . . 17 . 37 . 39 . . 19 4 69 54 57 15 38 103 45 20 Successful 612 | . 20 1 2 1 16 39 2 . 28 . 61 . 36 8 . . . . 23 . 30 . . 17 . 21 . 27 . . 19 1 49 36 35 10 22 62 26 20 Failed 287 | . 13 . . 1 8 25 . . . . 17 . 16 . . . . . 18 . 18 . . . . 16 . 12 . . . 3 20 18 22 5 16 40 19 . Catastrophic 43 | . 3 . . . 1 2 . . . . 5 . . . . . . . 2 . 2 . . . . 2 . 1 . . . 2 . . 4 1 4 12 2 . Database Lockouts 2 | . . . . . . . . . . . . . . . . . . . 1 . . . . . . . . . . . . . . . . . . 1 . . Manual 487 | . 26 . 1 2 15 40 . . . . 44 . 35 . . 1 . . 24 . 30 . . . . 19 . 24 . . 1 3 25 34 38 9 29 59 28 . Terminals 546 | . 31 . . 2 15 41 . . . . 40 . 32 . . . . . 25 . 33 . . . . 26 . 27 . . . 4 25 43 52 11 35 65 39 . Fabricators 124 | . . . . . . 14 . . . . 22 . 15 . . . . . 7 . 9 . . . . 4 . 8 . . . . 22 . . 4 . 19 . . Repair Stations 61 | . 2 . . . 6 2 . . . . 8 . 2 . . . . . 7 . . . . . . 5 . . . . . . 11 6 . . 2 4 6 . Recycling Units 13 | . . . . . 2 . . . . . 5 . . . . . . . . . 2 . . . . . . . . . . . . . . . . 4 . . Scanalyzers 29 | . . . . . . 6 . . . . 2 . . . . . . . . . 3 . . . . 1 . 4 . . . . 6 2 5 . . . . . Garrison Access 31 | . . . . . 1 1 . . . . 1 . 3 . . . . . 3 . 1 . . . . 1 . . . . . . 5 3 . . 1 11 . . Terminal Hacks 282 | . 13 1 2 . 5 14 2 . 28 . 16 . 8 8 . . . . 6 . 10 . . 17 . 9 . 9 . . 19 1 9 15 16 5 14 22 13 20 Record 61 | . . . 1 . . . 1 . 11 . . . . 7 . . . . . . . . . 5 . . . . . . 18 . . 1 . . . . . 17 Part Schematic 40 | . 3 . . . . 3 . . 7 . 8 . 2 . . . . . 1 . 4 . . 4 . 1 . 1 . . . . . 1 . . 1 4 . . Robot Schematic 9 | . . . . . . . . . 7 . . . . . . . . . 1 . . . . . . . . . . . . . . . . 1 . . . . Robot Analysis 9 | . 3 . . . . . . . . . . . . . . . . . . . . . . 4 . . . . . . . . 1 . . . . 1 . . Prototype ID Bank 8 | . 1 . . . . . . . 3 . . . . . . . . . . . . . . 4 . . . . . . . . . . . . . . . . Open Door 15 | . . 1 . . . . 1 . . . . . . 1 . . . . . . . . . . . . . . . . 1 1 . 2 3 . 1 3 1 . Level Access Points 1 | . . . . . . . . . . . . . . . . . . . . . 1 . . . . . . . . . . . . . . . . . . . Branch Access Points 7 | . . . . . . 1 . . . . 1 . 1 . . . . . . . . . . . . 1 . 1 . . . . 1 . . 1 . . . . Machine Index 6 | . . . . . . . . . . . 1 . . . . . . . . . 1 . . . . . . 1 . . . . 1 . . . 1 1 . . Terminal Index 8 | . . . . . . 1 . . . . . . 1 . . . . . . . 1 . . . . 1 . 1 . . . . . . 1 1 . . 1 . Fabricator Index 5 | . . . . . . 1 . . . . . . 1 . . . . . 1 . . . . . . 1 . . . . . . . . . 1 . . . . Repair Station Index 3 | . . . . . . . . . . . . . . . . . . . 1 . . . . . . 1 . . . . . . . 1 . . . . . . Scanalyzer Index 2 | . . . . . . . . . . . . . . . . . . . . . 1 . . . . . . . . . . . . . 1 . . . . . Alert Level 1 | . . . . . 1 . . . . . . . . . . . . . . . . . . . . . . . . . . . . . . . . . . . Unreport Threat 32 | . . . . . 2 4 . . . . 2 . . . . . . . . . . . . . . . . . . . . . 2 4 3 . 4 4 7 . Locate Traps 13 | . 1 . . . . . . . . . 1 . 1 . . . . . 2 . . . . . . 2 . . . . . . 1 1 2 . . 1 1 . Disarm Traps 1 | . . . . . . . . . . . . . . . . . . . . . . . . . . . . 1 . . . . . . . . . . . . Reprogram Traps 1 | . 1 . . . . . . . . . . . . . . . . . . . . . . . . . . . . . . . . . . . . . . . Transport Status 1 | . . . . . 1 . . . . . . . . . . . . . . . . . . . . . . . . . . . . . . . . . . . Recall Investigation 4 | . . . . . . . . . . . . . . . . . . . . . 1 . . . . . . 1 . . . . . . . . 1 1 . . Recall Extermination 7 | . . . . . . . . . . . 1 . . . . . . . . . 1 . . . . 1 . 1 . . . . 1 . 2 . . . . . Recall Reinforcements 8 | . . . . . . . . . . . 1 . . . . . . . . . . . . . . . . . . . . . . . . 1 4 2 . . Recall Assault 4 | . . . . . . . . . . . . . . . . . . . . . . . . . . . . . . . . . . 1 . . 1 2 . . Hauler Manifests 2 | . . . . . . . . . . . . . . . . . . . . . . . . . . 1 . . . . . . . 1 . . . . . . Registered Components 2 | . . . . . . 1 . . . . . . . . . . . . . . . . . . . . . . . . . . . . . . . 1 . . Registered Prototypes 1 | . . . . . . . . . . . . . . . . . . . . . . . . . . . . . . . . . . . . . . 1 . . Zone Layout 24 | . 4 . . . 1 3 . . . . 1 . 2 . . . . . . . . . . . . . . 2 . . . . 2 3 4 . . 1 1 . EX-Prototype ID Bank 1 | . . . 1 . . . . . . . . . . . . . . . . . . . . . . . . . . . . . . . . . . . . . Protovariant Controls 1 | . . . . . . . . . . . . . . . . . . . . . . . . . . . . . . . . . . . . . 1 . . . Disengage Seal 2 | . . . . . . . . . . . . . . . . . . . . . . . . . . . . . . . . . . . . . . . 2 . Gate Test 138-A 1 | . . . . . . . . . . . . . . . . . . . . . . . . . . . . . . . . . . . . . . . . 1 Gate Test 138-B 1 | . . . . . . . . . . . . . . . . . . . . . . . . . . . . . . . . . . . . . . . . 1 Gate Test 138-END 1 | . . . . . . . . . . . . . . . . . . . . . . . . . . . . . . . . . . . . . . . . 1 Fabricator Hacks 65 | . . . . . . 5 . . . . 13 . 8 . . . . . 5 . 5 . . . . 2 . 6 . . . . 10 . . 2 . 9 . . Load Schematic 30 | . . . . . . 2 . . . . 7 . 4 . . . . . 2 . 2 . . . . 1 . 2 . . . . 5 . . 1 . 4 . . Build 35 | . . . . . . 3 . . . . 6 . 4 . . . . . 3 . 3 . . . . 1 . 4 . . . . 5 . . 1 . 5 . . Repair Station Hacks 45 | . 1 . . . 5 1 . . . . 7 . 2 . . . . . 5 . . . . . . 3 . . . . . . 6 5 . . 2 4 4 . Scan Component 26 | . 1 . . . 3 1 . . . . 4 . 1 . . . . . 2 . . . . . . 2 . . . . . . 4 3 . . 1 2 2 . Repair 18 | . . . . . 2 . . . . . 3 . 1 . . . . . 2 . . . . . . 1 . . . . . . 2 2 . . 1 2 2 . Refit 1 | . . . . . . . . . . . . . . . . . . . 1 . . . . . . . . . . . . . . . . . . . . . Recycling Unit Hacks 3 | . . . . . . . . . . . 2 . . . . . . . . . 1 . . . . . . . . . . . . . . . . . . . Retrieve Components 3 | . . . . . . . . . . . 2 . . . . . . . . . 1 . . . . . . . . . . . . . . . . . . . Scanalyzer 23 | . . . . . . 4 . . . . 1 . . . . . . . . . 3 . . . . 1 . 3 . . . . 6 2 3 . . . . . Insert Component 17 | . . . . . . 2 . . . . 1 . . . . . . . . . 3 . . . . 1 . 1 . . . . 4 2 3 . . . . . Analyze 6 | . . . . . . 2 . . . . . . . . . . . . . . . . . . . . . 2 . . . . 2 . . . . . . . Garrison Access Hacks 15 | . . . . . 1 1 . . . . 1 . 1 . . . . . 1 . 1 . . . . 1 . . . . . . 3 . . . 1 4 . . Seal Access 15 | . . . . . 1 1 . . . . 1 . 1 . . . . . 1 . 1 . . . . 1 . . . . . . 3 . . . 1 4 . . Unauthorized Hacks 179 | . 6 . . 1 5 14 . . . . 21 . 17 . . . . . 6 . 10 . . . . 5 . 9 . . . . 15 14 16 3 5 23 9 . Terminals 131 | . 6 . . 1 3 10 . . . . 10 . 11 . . . . . 4 . 6 . . . . 4 . 7 . . . . 10 14 16 2 5 13 9 . Track 61 | . 5 . . 1 2 6 . . . . 3 . 5 . . . . . . . 1 . . . . 2 . 2 . . . . 3 10 10 1 1 5 4 . Assimilate 24 | . 1 . . . . . . . . . 3 . 2 . . . . . 2 . 2 . . . . . . 2 . . . . 4 . 2 . 2 3 1 . Botnet 42 | . . . . . 1 4 . . . . 3 . 3 . . . . . 2 . 3 . . . . 2 . 3 . . . . 3 3 3 1 2 5 4 . Disrupt 2 | . . . . . . . . . . . . . . . . . . . . . . . . . . . . . . . . . . 1 1 . . . . . Operators 2 | . . . . . . . . . . . 1 . 1 . . . . . . . . . . . . . . . . . . . . . . . . . . . Fabricators 38 | . . . . . . 4 . . . . 8 . 6 . . . . . 1 . 4 . . . . 1 . 2 . . . . 5 . . 1 . 6 . . Report 4 | . . . . . . . . . . . 1 . 1 . . . . . . . 1 . . . . . . . . . . . . . . . . 1 . . Prioritize 13 | . . . . . . 2 . . . . 3 . 2 . . . . . . . 1 . . . . . . . . . . . 3 . . 1 . 1 . . Siphon 19 | . . . . . . 2 . . . . 4 . 3 . . . . . 1 . 1 . . . . 1 . 2 . . . . 2 . . . . 3 . . Haulers 2 | . . . . . . . . . . . . . . . . . . . . . 1 . . . . . . . . . . . . . . . . 1 . . Repair Stations 2 | . . . . . . . . . . . 1 . . . . . . . 1 . . . . . . . . . . . . . . . . . . . . . Mechanics 2 | . . . . . . . . . . . 1 . . . . . . . 1 . . . . . . . . . . . . . . . . . . . . . Recycling Units 8 | . . . . . 2 . . . . . 2 . . . . . . . . . . . . . . . . . . . . . . . . . . 4 . . Monitor 1 | . . . . . . . . . . . . . . . . . . . . . . . . . . . . . . . . . . . . . . 1 . . Reject 1 | . . . . . . . . . . . . . . . . . . . . . . . . . . . . . . . . . . . . . . 1 . . Recyclers 2 | . . . . . . . . . . . 1 . . . . . . . . . . . . . . . . . . . . . . . . . . 1 . . Mask 2 | . . . . . . . . . . . 1 . . . . . . . . . . . . . . . . . . . . . . . . . . 1 . . Tunnel 2 | . . . . . 2 . . . . . . . . . . . . . . . . . . . . . . . . . . . . . . . . . . . Scanalyzers . | . . . . . . . . . . . . . . . . . . . . . . . . . . . . . . . . . . . . . . . . . Garrison Access . | . . . . . . . . . . . . . . . . . . . . . . . . . . . . . . . . . . . . . . . . . Data Cores Recovered 1 | . . . . . . . . . . . . . . . . . . . . . . . . . . . . . . . . . . . . . . 1 . . Used 1 | . . . . . . . . . . . . . . . . . . . . . . . . . . . . . . . . . . . . . . 1 . . Hacking Detections 192 | . 9 . . 1 5 16 . . . . 22 . 10 . . . . . 15 . 12 . . . . 8 . 6 . . . 1 19 13 14 3 7 21 10 . Full Trace Events 9 | . . . . . . . . . . . . . . . . . . . . . 1 . . . . . . 3 . . . . 1 1 2 . . 1 . . Feedback Events 2 | . . . . . . . . . . . . . . . . . . . . . 1 . . . . . . . . . . . . . 1 . . . . . Corruption 2 | . . . . . . . . . . . . . . . . . . . . . 1 . . . . . . . . . . . . . 1 . . . . . Feedback Blocked . | . . . . . . . . . . . . . . . . . . . . . . . . . . . . . . . . . . . . . . . . . Robot Schematics Acquired 9 | . . . . . . . . . 7 . . . . . . . . . 1 . . . . . . . . . . . . . . . . 1 . . . . Robots Built 2 | . . . . . . . . . . . . . . . . . . . . . . . . . . . . . . . . . 2 . . . . . . . Matter 556 | . . . . . . . . . . . . . . . . . . . . . . . . . . . . . . . . . 556 . . . . . . . Time 140 | . . . . . . . . . . . . . . . . . . . . . . . . . . . . . . . . . 140 . . . . . . . Total Robot Build Rating 12 | . . . . . . . . . . . . . . . . . . . . . . . . . . . . . . . . . 12 . . . . . . . Part Schematics Acquired 43 | . 3 . . . . 4 . . 7 . 8 . 2 . . . . . 1 . 3 . . 4 . 1 . 2 . . . . 2 1 . . 1 4 . . Parts Built 33 | . . . . . . 3 . . . . 5 . 3 . . . . . 4 . 3 . . . . 1 . 5 . . . . 4 . . 1 . 4 . . Matter 6728 | . . . . . . 492 . . . . 1171 . 602 . . . . . 594 . 597 . . . . 213 . 728 . . . . 855 . . 351 . 1125 . . Time 2403 | . . . . . . 232 . . . . 386 . 337 . . . . . 194 . 268 . . . . 76 . 360 . . . . 171 . . 93 . 286 . . Total Part Build Rating 204 | . . . . . . 9 . . . . 26 . 16 . . . . . 18 . 21 . . . . 5 . 45 . . . . 26 . . 7 . 31 . . Parts Repaired 17 | . . . . . 2 . . . . . 3 . 1 . . . . . 2 . . . . . . 1 . . . . . . 2 1 . . 1 2 2 . Time 746 | . . . . . 130 . . . . . 101 . 22 . . . . . 88 . . . . . . 22 . . . . . . 53 118 . . 80 80 52 . Parts Recycled . | . . . . . . . . . . . . . . . . . . . . . . . . . . . . . . . . . . . . . . . . . Recycled Matter . | . . . . . . . . . . . . . . . . . . . . . . . . . . . . . . . . . . . . . . . . . Retrieved Matter . | . . . . . . . . . . . . . . . . . . . . . . . . . . . . . . . . . . . . . . . . . Retrieved Components 13 | . . . . . . . . . . . 3 . . . . . . . . . 10 . . . . . . . . . . . . . . . . . . . Parts Scanalyzed 4 | . . . . . . 1 . . . . . . . . . . . . . . . . . . . . . 1 . . . . 2 . . . . . . . Part Schematics Acquired 4 | . . . . . . 1 . . . . . . . . . . . . . . . . . . . . . 1 . . . . 2 . . . . . . . Parts Damaged 2 | . . . . . . . . . . . . . . . . . . . . . . . . . . . . 1 . . . . 1 . . . . . . . Bothacking | -11 -10 -10 -10 -9 -8 -7 -7 -7 -7 -6 -6 -6 -6 -6 -6 -6 -6 -5 -5 -5 -5 -5 -5 -5 -4 -4 -4 -4 -4 -4 -4 -3 -3 -3 -3 -2 -2 -1 -1 -1 ------------ Run | Scr Mat Min Exi Min Mat Fac Low Low Dat Pro Fac Was Fac Low Low Zio Dee Pro Fac Was Fac Upp Upp Zhi Pro Fac Was Fac Upp Upp War Pro Res Qua Sec Res Tes Acc Com Ac0 Used RIF Installer . | . . . . . . . . . . . . . . . . . . . . . . . . . . . . . . . . . . . . . . . . . Robots Hacked 2 | . . . . . . . . . . . 1 . . . . . . . . . . . . . . 1 . . . . . . . . . . . . . . Non-combat 2 | . . . . . . . . . . . 1 . . . . . . . . . . . . . . 1 . . . . . . . . . . . . . . Combat . | . . . . . . . . . . . . . . . . . . . . . . . . . . . . . . . . . . . . . . . . . Robot Hacks Applied 2 | . . . . . . . . . . . 1 . . . . . . . . . . . . . . 1 . . . . . . . . . . . . . . find_chute 2 | . . . . . . . . . . . 1 . . . . . . . . . . . . . . 1 . . . . . . . . . . . . . . Relay Couplers Released 7 | . . . . . . . . . . . . . . . . . . . . . . . . . . . . . . . . . . 3 . 3 . 1 . . Machine Destruction 7 | . . . . . . . . . . . . . . . . . . . . . . . . . . . . . . . . . . 3 . 3 . 1 . . Robots Rewired 11 | . . . . . . . . . . . . . . . . . . . . . . . . . . . . . . . . 11 . . . . . . . . Allies Hacked 3 | . . . . . . . . . . . . . . . . . . . 1 . 1 . . . . . . . . . . . . . 1 . . . . . Hacks Repelled . | . . . . . . . . . . . . . . . . . . . . . . . . . . . . . . . . . . . . . . . . . Allies | -11 -10 -10 -10 -9 -8 -7 -7 -7 -7 -6 -6 -6 -6 -6 -6 -6 -6 -5 -5 -5 -5 -5 -5 -5 -4 -4 -4 -4 -4 -4 -4 -3 -3 -3 -3 -2 -2 -1 -1 -1 -------- Run | Scr Mat Min Exi Min Mat Fac Low Low Dat Pro Fac Was Fac Low Low Zio Dee Pro Fac Was Fac Upp Upp Zhi Pro Fac Was Fac Upp Upp War Pro Res Qua Sec Res Tes Acc Com Ac0 Total Allies 101 | . 1 3 . 3 . . . . . . 2 20 2 2 . 2 . . 2 20 2 . . . . . 18 2 . . . 11 5 . 2 . 1 2 1 . Largest Group 20 | . 1 3 2 3 3 . . . . . 2 19 1 2 . 2 2 . 2 20 4 . . . . . 18 2 . . . 6 4 . 1 . 1 1 1 . Highest-Rated Group 805 | . 10 78 62 40 40 . . . . . 36 696 26 62 . 188 188 . 52 805 101 . . . . . 650 36 . . . 356 168 . 44 . 26 44 39 . Highest-Rated Ally 94 | . 10 31 31 16 16 . . . . . 26 50 26 31 . 94 94 . 26 50 26 . . . . . 50 26 . . . 64 64 . 44 . 26 44 39 . Total Orders 13 | . . . . . . . . . . . 6 . 1 . . . . . . . 2 . . . . . . 2 . . . . 1 . . . . 1 . . STAY 8 | . . . . . . . . . . . 3 . 1 . . . . . . . 1 . . . . . . 1 . . . . 1 . . . . 1 . . FOLLOW 5 | . . . . . . . . . . . 3 . . . . . . . . . 1 . . . . . . 1 . . . . . . . . . . . . Ally Attacks 391 | . . 3 30 . 11 27 . . 4 . . 82 . 37 . . 23 . . . 17 . . . . . 85 . . . . 44 28 . . . . . . . Total Damage 14146 | . . 41 1519 . 131 1623 . . 218 . . 1710 . 270 . . 883 . . . 258 . . . . . 5018 . . . . 1712 763 . . . . . . . Kills 43 | . . . 3 . . 9 . . . . . 2 . 1 . . 5 . . . . . . . . . 11 . . . . 7 5 . . . . . . . Allies Corrupted . | . . . . . . . . . . . . . . . . . . . . . . . . . . . . . . . . . . . . . . . . . Allies Melted 1 | . . . . . . . . . . . . . . . . . 1 . . . . . . . . . . . . . . . . . . . . . . . Turrets Deployed 4 | . . . 2 . . 1 . . 1 . . . . . . . . . . . . . . . . . . . . . . . . . . . . . . . Intel | -11 -10 -10 -10 -9 -8 -7 -7 -7 -7 -6 -6 -6 -6 -6 -6 -6 -6 -5 -5 -5 -5 -5 -5 -5 -4 -4 -4 -4 -4 -4 -4 -3 -3 -3 -3 -2 -2 -1 -1 -1 ------- Run | Scr Mat Min Exi Min Mat Fac Low Low Dat Pro Fac Was Fac Low Low Zio Dee Pro Fac Was Fac Upp Upp Zhi Pro Fac Was Fac Upp Upp War Pro Res Qua Sec Res Tes Acc Com Ac0 Robot Analysis Total 9 | . 3 . . . . . . . . . . . . . . . . . . . . . . 4 . . . . . . . . 1 . . . . 1 . . Derelict Logs Recovered 20 | . . 1 . 2 . . 2 . . 1 . . . 1 3 2 . 1 . . . 1 1 . 1 . . . 2 2 . . . . . . . . . . Drone Launches . | . . . . . . . . . . . . . . . . . . . . . . . . . . . . . . . . . . . . . . . . . Drone Recoveries . | . . . . . . . . . . . . . . . . . . . . . . . . . . . . . . . . . . . . . . . . . Exploration | -11 -10 -10 -10 -9 -8 -7 -7 -7 -7 -6 -6 -6 -6 -6 -6 -6 -6 -5 -5 -5 -5 -5 -5 -5 -4 -4 -4 -4 -4 -4 -4 -3 -3 -3 -3 -2 -2 -1 -1 -1 ------------- Run | Scr Mat Min Exi Min Mat Fac Low Low Dat Pro Fac Was Fac Low Low Zio Dee Pro Fac Was Fac Upp Upp Zhi Pro Fac Was Fac Upp Upp War Pro Res Qua Sec Res Tes Acc Com Ac0 Turns Passed 40126 | . 1077 850 2896 653 2054 3122 443 274 115 131 1470 112 688 2925 225 3098 735 467 654 136 698 47 118 188 299 426 190 682 106 143 456 345 1040 1883 1314 1049 666 2115 5170 1066 Spaces Moved 56382 | 1 530 500 1328 313 852 1268 625 419 113 274 3236 257 1771 5423 713 3364 1389 691 1631 412 1679 226 366 345 402 1144 499 1225 316 338 970 498 2353 2716 2274 3147 1275 4496 4703 2300 Core 5 | . . . . . . . . . . . . . . . . . . . . . . . . 5 . . . . . . . . . . . . . . . . Treads 5128 | . 472 500 1328 313 852 1166 6 . . . . . . . . . . . . . . . . . . . . . . . . . . . . . . . 491 . Legs 59 | 1 58 . . . . . . . . . . . . . . . . . . . . . . . . . . . . . . . . . . . . . . . Wheels 102 | . . . . . . 102 . . . . . . . . . . . . . . . . . . . . . . . . . . . . . . . . . . Hover 25031 | . . . . . . . . . . . . . . . . . . . . . . . . . . . . 136 316 338 970 498 2353 2716 2274 3147 1275 4496 4212 2300 Flight 26057 | . . . . . . . 619 419 113 274 3236 257 1771 5423 713 3364 1389 691 1631 412 1679 226 366 340 402 1144 499 1089 . . . . . . . . . . . . Fastest Speed 13 | 120 120 157 157 197 178 150 29 26 26 29 26 28 21 17 27 17 24 17 13 27 13 18 18 18 18 18 18 18 24 24 24 24 24 24 24 24 24 22 22 22 Average Speed 42 | 120 155 157 193 197 182 185 30 33 77 29 27 28 27 27 27 52 35 26 26 27 26 18 18 22 21 18 25 31 24 24 24 24 24 29 27 24 25 22 43 22 Slowest Speed 300 | 120 160 165 197 197 203 240 180 97 97 29 28 28 28 300 27 95 98 27 28 27 37 37 18 225 37 37 37 160 24 24 24 24 24 148 148 124 124 122 240 44 Overloaded Moves 123 | . . . . . . . . 1 31 . . . 7 21 . 9 43 11 . . . . . . . . . . . . . . . . . . . . . . Propulsion Burnouts . | . . . . . . . . . . . . . . . . . . . . . . . . . . . . . . . . . . . . . . . . . Robots Hopped 42 | . . . . . . . . . . . 10 . 8 . . 1 . 1 3 . 7 . . . . 7 . 5 . . . . . . . . . . . . Cave-ins Triggered . | . . . . . . . . . . . . . . . . . . . . . . . . . . . . . . . . . . . . . . . . . Teleports 3 | . . . . . . . . . . . . . . . . . . . . . . . . . . . . . . . . . . . . . . . 1 2 Exploration Rate (%) 66 | 2 94 91 91 78 75 35 73 60 76 52 58 86 41 98 77 89 82 70 27 97 30 42 56 91 57 31 97 18 55 53 91 47 47 94 81 69 93 62 83 92 Regions Visited 40 Branch Regions 25 Pre-discovered Areas 10 | . . . 1 1 2 . . . 1 . . . . . . . . 1 . . . . 1 3 . . . . . . . . . . . . . . . . Known Exits Taken 29 | . . 1 . . 1 1 1 1 1 1 . . 1 1 1 1 1 1 . . 1 1 1 1 1 . . 1 1 1 1 1 1 1 1 1 1 1 . . Unknown Exits Taken 5 | 1 1 . 1 1 . . . . . . . . . . . . . . . . . . . . . . . . . . . . . . . . . . 1 . Scrap Searched 39 | . . 2 . . . . 2 3 . 4 . . . 8 6 4 . 2 . . . 2 1 . 2 . . . 1 . . 2 . . . . . . . . Spaces Dug 582 | . 5 . 23 5 13 6 4 5 . 3 51 1 31 76 4 4 11 12 12 . 5 . 1 . 26 16 . 16 3 11 3 4 57 47 26 3 5 74 19 . Terrain Destroyed 2035 | . 17 28 52 33 287 54 66 5 . 30 73 1 40 172 38 123 71 61 59 . 5 . 1 . 98 16 . 16 3 13 114 6 76 69 26 4 5 88 120 165 Melee 310 | . . . . . . 6 4 5 . 3 51 1 24 53 4 4 3 10 8 . 3 . 1 . 3 9 . 16 2 2 1 4 20 15 18 3 2 31 4 . Projectile 435 | . . . . . . . . . . . . . . . . . 10 2 4 . 2 . . . 23 7 . . 1 11 4 . 41 42 8 1 3 57 54 165 AOE 1290 | . 17 28 52 33 287 48 62 . . 27 22 . 16 119 34 119 58 49 47 . . . . . 72 . . . . . 109 2 15 12 . . . . 62 . Terrain Rammed 1 | . . . . . . . . . . . . . . . . . . . . . . . . . . . . . . . . . . . . . . . 1 . Walls Destroyed . | . . . . . . . . . . . . . . . . . . . . . . . . . . . . . . . . . . . . . . . . . Machines Disabled . | . . . . . . . . . . . . . . . . . . . . . . . . . . . . . . . . . . . . . . . . . Actions | -11 -10 -10 -10 -9 -8 -7 -7 -7 -7 -6 -6 -6 -6 -6 -6 -6 -6 -5 -5 -5 -5 -5 -5 -5 -4 -4 -4 -4 -4 -4 -4 -3 -3 -3 -3 -2 -2 -1 -1 -1 --------- Run | Scr Mat Min Exi Min Mat Fac Low Low Dat Pro Fac Was Fac Low Low Zio Dee Pro Fac Was Fac Upp Upp Zhi Pro Fac Was Fac Upp Upp War Pro Res Qua Sec Res Tes Acc Com Ac0 Total 68689 | . 657 545 1554 329 1201 1716 865 545 130 321 3681 290 1901 6732 735 4278 1573 945 1797 426 1870 228 391 411 568 1297 559 1478 337 378 1158 683 2707 3398 2829 3342 1590 5279 7210 2755 Wait 6790 | . 27 2 89 . 115 146 182 116 8 25 278 30 58 1194 10 536 45 225 92 2 90 . 1 8 118 52 34 213 14 23 115 70 188 298 294 54 232 444 1293 69 Move 56263 | . 529 499 1327 312 851 1267 624 418 112 273 3218 256 1754 5422 712 3361 1388 688 1625 411 1665 225 365 344 401 1130 498 1214 315 337 969 497 2352 2715 2273 3146 1274 4495 4702 2299 Hop 39 | . . . . . . . . . . . 8 . 8 . . 1 . 1 3 . 6 . . . . 7 . 5 . . . . . . . . . . . . Pick Up 391 | . 9 6 35 . 31 23 2 1 . 2 15 . 5 17 2 17 13 2 11 . 16 . 2 8 2 17 3 5 . . 6 3 14 12 16 10 8 20 40 18 Fast Attach 292 | . 2 2 4 . 10 9 4 1 1 1 16 . 5 . . 4 20 . 8 4 9 . 3 5 . 5 6 4 . . 10 2 10 28 34 9 10 9 35 22 Attach 242 | . 2 . . . 8 18 11 1 . 5 7 . 2 . . 10 7 2 4 . 2 . 1 6 . 6 . 1 1 . 3 . 6 7 24 12 11 16 39 30 Detach 164 | . . 1 2 . 2 3 4 1 1 5 7 . 1 . . 5 5 1 3 . 3 . 1 1 . 3 . . . . 6 . 3 9 25 8 9 12 24 19 Swap 405 | . 8 1 11 2 40 41 11 2 1 3 6 . 7 2 2 10 4 8 5 . 21 3 1 2 11 25 9 10 2 1 7 6 19 26 23 8 4 24 30 9 Drop 568 | . 6 1 20 . 36 20 17 . 2 3 22 . 7 18 2 18 33 2 12 4 22 . 3 12 2 18 9 6 . . 14 5 20 36 37 13 16 28 70 34 Fire 1697 | . 67 10 66 9 106 166 2 . . 1 4 . 3 9 3 165 14 5 5 5 2 . 9 2 30 7 . . 1 11 23 9 51 121 56 72 9 156 243 255 Melee 970 | . . . . . . 11 8 5 5 3 82 4 33 70 4 151 44 11 29 . 34 . 5 23 4 27 . 20 4 6 5 19 44 146 47 10 17 75 24 . Ram 4 | . . . . . . . . . . . . . . . . . . . . . . . . . . . . . . . . . . . . . . . 4 . Kick 2 | . 2 . . . . . . . . . . . . . . . . . . . . . . . . . . . . . . . . . . . . . . . Crush 695 | . 5 15 . 6 2 12 . . . . . . . . . . . . . . . . . . . . . . . . . . . . . . . . 655 . Escape Stasis 82 | . . . . . . . . . . . 18 . 18 . . . . . . . . . . . . . . . . . . . . . . . . . 46 . Rewire 85 | . . 8 . . . . . . . . . . . . . . . . . . . . . . . . . . . . . 72 . . . . . . 5 . Trap . | . . . . . . . . . . . . . . . . . . . . . . . . . . . . . . . . . . . . . . . . . Miscellaneous . | . . . . . . . . . . . . . . . . . . . . . . . . . . . . . . . . . . . . . . . . . Route ------- -11/Scrapyard -10/Materials (discovered 4 exits: [*Mat x3] / *Min) -10/Mines (discovered 3 exits: [*Mat x2] / *Exi) -10/Exiles (discovered 2 exits: *Min x2) -9/Mines -8/Materials (discovered 3 exits: *Fac x3) -7/Factory (discovered 3 exits: *Fac / *Low x2) -7/Lower Caves -7/Lower Caves (discovered 2 exits: *Fac / *Dat) -7/Data Miner -6/Proximity Caves -6/Factory (discovered 6 exits: *Fac x2 / *Low x2 / *Ext x2) -6/Waste -6/Factory (discovered 5 exits: *Fac / *Low x2 / Ext x2) -6/Lower Caves -6/Lower Caves -6/Zion (discovered 2 exits: *Dee / [*Pro]) -6/Deep Caves -5/Proximity Caves -5/Factory (discovered 2 exits: Fac / *Upp) -5/Waste -5/Factory (discovered 5 exits: *Fac x4 / *Upp) -5/Upper Caves -5/Upper Caves -5/Zhirov -4/Proximity Caves -4/Factory (discovered 3 exits: Res / *Upp x2) -4/Waste -4/Factory (discovered 2 exits: *Upp x2) -4/Upper Caves -4/Upper Caves (discovered 2 exits: Res / *War) -4/Warlord -3/Proximity Caves -3/Research (discovered 4 exits: *Res / Arm / *Qua x2) -3/Quarantine -3/Section 7 -2/Research (discovered 4 exits: *Acc x2 / *Tes x2) -2/Testing -1/Access -1/Command -1/Access_0 0b11 Command History --------- Turn | Location | Event 1 | -11/Scrapyard | Discovered new exit (range 0) 1 | -11/Scrapyard | Entered Materials 229 | -10/Materials | Discovered new exit (range 16) 313 | -10/Materials | Build established: Mutant 373 | -10/Materials | Discovered new exit (range 8) 397 | -10/Materials | Core integrity fell below 50% 787 | -10/Materials | Discovered new exit (range 15) 882 | -10/Materials | Discovered new exit (range 16) 1078 | -10/Materials | Entered Mines 1079 | -10/Mines | Assembled infested the area 1084 | -10/Mines | Met a Derelict shopkeep closing up shop 1332 | -10/Mines | Discovered new exit (range 9) 1453 | -10/Mines | Received a Rocket Launcher from a helpful Derelict 1578 | -10/Mines | Discovered new exit (range 13) 1690 | -10/Mines | Identified exit to Exiles 1833 | -10/Mines | Received a Mining Laser from a helpful Derelict 1928 | -10/Mines | Entered Exiles 1928 | -10/Exiles | Accompanied by 2 allies 1949 | -10/Exiles | Discovered new exit (range 15) 1958 | -10/Exiles | Led the pair of lost Derelicts to a safe place 1968 | -10/Exiles | Met 8R-AWN 2010 | -10/Exiles | Met EX-HEX 2067 | -10/Exiles | Met EX-DEC 2283 | -10/Exiles | Learned location of Zion (-6) 2425 | -10/Exiles | Met EX-BIN 2438 | -10/Exiles | Build established: Hauler-Mutant 2452 | -10/Exiles | Aligned with FarCom system 2454 | -10/Exiles | Given EX-Vault access code 2502 | -10/Exiles | Opened EX-Vault 2517 | -10/Exiles | Found Superbattery 2526 | -10/Exiles | Found Deploy-a-Sentry 2529 | -10/Exiles | Found Deploy-a-Sentry 2532 | -10/Exiles | Found Deploy-a-Sentry 2541 | -10/Exiles | Found Potential Leg 2543 | -10/Exiles | Found Potential Leg 2588 | -10/Exiles | Warned to stay clear of 0b10 Research branches 2945 | -10/Exiles | Discovered new exit (range 14) 3175 | -10/Exiles | DAS Turret deployed 3180 | -10/Exiles | DAS Turret deployed 3546 | -10/Exiles | Attacked by the Exiles 3679 | -10/Exiles | Destroyed 8R-AWN 4169 | -10/Exiles | Destroyed EX-DEC 4209 | -10/Exiles | Destroyed EX-BIN 4238 | -10/Exiles | Destroyed EX-HEX 4447 | -10/Exiles | Found Deploy-a-Sentry 4824 | -10/Exiles | Stole three prototypes: Potential Leg, Superbattery, Deploy-a-Sentry 4824 | -10/Exiles | Entered Mines 4825 | -9/Mines | Learned location of Storage (-9) 4897 | -9/Mines | Learned 2 Materials zone layouts 4909 | -9/Mines | Met a Derelict bent on vengeance 5288 | -9/Mines | Learned location of 1 exit from Proximity Caves 5440 | -9/Mines | Discovered new exit (range 14) 5469 | -9/Mines | Assisted by bots powering up and referring to "LRC-V3" 5477 | -9/Mines | Entered Materials 5477 | -8/Materials | Accompanied by 3 allies 5477 | -8/Materials | Evolved 4 slots: Propulsion x1, Utility x3 5478 | -8/Materials | Identified exit to Factory 6120 | -8/Materials | Destroyed 7 combat bots 6488 | -8/Materials | Discovered exit to Factory (range 7) 6566 | -8/Materials | Repaired Enh. Autogun 6607 | -8/Materials | Garrison activated, responded to threat 6740 | -8/Materials | Repaired Hvy. Deuterium Engine 7208 | -8/Materials | Discovered exit to Factory (range 15) 7477 | -8/Materials | First assault squad dispatched 7531 | -8/Materials | Entered Factory 7531 | -7/Factory | Evolved 2 slots: Utility x2 7581 | -7/Factory | Identified exit to Lower Caves 8361 | -7/Factory | Lost 3 parts (1n1u1w) 8502 | -7/Factory | DAS Turret deployed 8593 | -7/Factory | Build established: Scavenger-Mutant 8923 | -7/Factory | Lost 6 parts (1p3n1u1w) 9444 | -7/Factory | Garrison activated, responded to threat 9852 | -7/Factory | Fabricated Imp. VTOL Module (x1) 9974 | -7/Factory | Fabricated Imp. VTOL Module (x1) 10046 | -7/Factory | Fabricated Imp. VTOL Module (x1) 10433 | -7/Factory | Found Prototype Launcher 10433 | -7/Factory | Identified Rocket Array 10473 | -7/Factory | Discovered new exit (range 11) 10653 | -7/Factory | Entered Lower Caves 10719 | -7/Lower Caves | Core integrity fell below 50% 10748 | -7/Lower Caves | Encountered a Warlord checkpoint 10957 | -7/Lower Caves | Build established: Hacker-Sprinter 11026 | -7/Lower Caves | Discovered new exit (range 6) 11027 | -7/Lower Caves | Identified exit to Lower Caves 11050 | -7/Lower Caves | Learned Factory non-interactive machine intel 11066 | -7/Lower Caves | Learned Factory emergency access door positions 11096 | -7/Lower Caves | Entered another Lower Caves area 11179 | -7/Lower Caves | Discovered new exit (range 16) 11326 | -7/Lower Caves | Discovered new exit (range 8) 11329 | -7/Lower Caves | Identified exit to Data Miner 11370 | -7/Lower Caves | Entered Data Miner 11370 | -7/Data Miner | Discovered new exit (range 7) 11389 | -7/Data Miner | Met Data Miner 11406 | -7/Data Miner | Learned location of Section 7 (-3) 11406 | -7/Data Miner | Acquired the access code to Warlord's prototype stash 11422 | -7/Data Miner | Received God Mode back door access code from Data Miner 11442 | -7/Data Miner | DAS Turret deployed 11460 | -7/Data Miner | Data Conduit disabled 11485 | -7/Data Miner | Identified exit to Proximity Caves 11485 | -7/Data Miner | Entered Proximity Caves 11486 | -6/Proximity Caves | Identified exit to Factory 11492 | -6/Proximity Caves | Learned Factory stockpile data 11513 | -6/Proximity Caves | Attracted the attention of an 0b10 checkpoint 11616 | -6/Proximity Caves | Entered Factory 11616 | -6/Factory | Evolved 2 slots: Power x1, Propulsion x1 11619 | -6/Factory | Loaded intel: 202 non-interactive machine locations 11646 | -6/Factory | Found Prototype Processor 11648 | -6/Factory | Identified Exp. Signal Interpreter 11712 | -6/Factory | Fabricated Imp. VTOL Module? 11744 | -6/Factory | Repaired Lrn. Sensor Array? 11824 | -6/Factory | Discovered new exit (range 5) 11825 | -6/Factory | Identified exit to Lower Caves 11879 | -6/Factory | Fabricated Kinetic Spear (x1) 11901 | -6/Factory | Fabricated Mni. Smartbomb Launcher? 12122 | -6/Factory | Repaired Imp. Light Armor Plating 12215 | -6/Factory | Identified exit to Extension 12285 | -6/Factory | Discovered new exit (range 9) 12287 | -6/Factory | Identified exit to Factory 12320 | -6/Factory | Fabricated Biomechanical Wings? 12709 | -6/Factory | Fabricated Cld. Nuclear Pulse Thruster (x1) 12772 | -6/Factory | Repaired Lgt. Nuclear Core 12807 | -6/Factory | Local fabrication network quarantined 12905 | -6/Factory | Discovered exit to Factory (range 15) 13086 | -6/Factory | Manually triggered Chute Trap 13086 | -6/Factory | Sucked down chute 13086 | -6/Factory | Entered Waste 13087 | -6/Waste | Met a frightened Derelict 13094 | -6/Waste | Spotted C-40 Crusher 13096 | -6/Waste | Spotted C-40 Crusher 13096 | -6/Waste | Spotted C-40 Crusher 13101 | -6/Waste | EMP discharged 13130 | -6/Waste | 2 allies followed down the chute 13131 | -6/Waste | Spotted C-40 Crusher 13133 | -6/Waste | Spotted C-40 Crusher 13141 | -6/Waste | Spotted C-40 Crusher 13142 | -6/Waste | Discovered new exit (range 13) 13150 | -6/Waste | Met Warlord forces unprepared to attack 13163 | -6/Waste | Allies destroyed C-40 Crusher 13174 | -6/Waste | Allies destroyed C-40 Crusher 13198 | -6/Waste | Identified exit to Factory 13198 | -6/Waste | Entered Factory 13293 | -6/Factory | Repaired Lrn. Sensor Array 13305 | -6/Factory | Discovered exit to Factory (range 11) 13468 | -6/Factory | Fabricated Cld. Nuclear Pulse Thruster? 13591 | -6/Factory | Fabricated Cld. Nuclear Pulse Thruster? 13637 | -6/Factory | Fabricated Lrn. Sensor Array? 13701 | -6/Factory | Local fabrication network quarantined 13886 | -6/Factory | Entered Lower Caves 13937 | -6/Lower Caves | Learned Factory terminal intel 13937 | -6/Lower Caves | Learned Extension terminal intel 13937 | -6/Lower Caves | Learned Extension garrison access intel 14061 | -6/Lower Caves | Discovered new exit (range 8) 14063 | -6/Lower Caves | Identified exit to Lower Caves 14067 | -6/Lower Caves | Encountered a Warlord checkpoint 14615 | -6/Lower Caves | Attracted the attention of an 0b10 checkpoint 15251 | -6/Lower Caves | Build established: Hacker-Mutant 15943 | -6/Lower Caves | A Commander dispatched an escort 16286 | -6/Lower Caves | Spotted 8B-6Q4(f) 16287 | -6/Lower Caves | Encountered a Master Thief 16416 | -6/Lower Caves | Spotted A9-TGD(f) 16417 | -6/Lower Caves | Encountered a Master Thief 16649 | -6/Lower Caves | Build established: Hacker-Sprinter 16695 | -6/Lower Caves | Spotted D6-SHF(f) 16696 | -6/Lower Caves | Encountered a Master Thief 16700 | -6/Lower Caves | Spotted SV-OSN(f) 16701 | -6/Lower Caves | Encountered a Master Thief 16759 | -6/Lower Caves | Allies destroyed SV-OSN(f) 16811 | -6/Lower Caves | Entered another Lower Caves area 16811 | -6/Lower Caves | Accompanied by 2 allies 16812 | -6/Lower Caves | Commander's escort returned to base 16812 | -6/Lower Caves | Commander's escort returned to base 16842 | -6/Lower Caves | Learned location of 1 exit from Factory 16936 | -6/Lower Caves | Learned 4 Factory zone layouts 16948 | -6/Lower Caves | Learned Factory stockpile data 16966 | -6/Lower Caves | Spotted B-75 Beast 17016 | -6/Lower Caves | Spotted DL-RTT(f) 17017 | -6/Lower Caves | Encountered a Master Thief 17035 | -6/Lower Caves | Discovered new exit (range 5) 17036 | -6/Lower Caves | Identified exit to Zion 17036 | -6/Lower Caves | Entered Zion 17047 | -6/Zion | Found Unknown Piercing Weapon 17074 | -6/Zion | Discovered new exit (range 13) 17165 | -6/Zion | System corruption cleaned by Quarantine Array 17332 | -6/Zion | Build established: Hacker-Mutant 17499 | -6/Zion | Given the Hacking Drone Bay 17515 | -6/Zion | Learned Factory garrison access intel 17577 | -6/Zion | Given A8's code to call for help 17617 | -6/Zion | Identified exit to Deep Caves 18478 | -6/Zion | Found Prototype Device 18503 | -6/Zion | Identified Mobile Refinery Mk. CCLXVII 18636 | -6/Zion | Attacked by Zionites 18785 | -6/Zion | Spotted 3C-967(B) 18813 | -6/Zion | Spotted 5E-Z7Y(B) 18813 | -6/Zion | Identified CR-A16's Pointy Stick 18824 | -6/Zion | Revealed the true nature of CR-A16's Pointy Stick 18828 | -6/Zion | Destroyed 5E-Z7Y(B) 18830 | -6/Zion | Destroyed 3C-967(B) 19916 | -6/Zion | Saw the warning signs outside the Deep Caves entrance 20109 | -6/Zion | Enhanced Grunt warped into view, answering call for help 20109 | -6/Zion | Enhanced Grunt warped into view, answering call for help 20134 | -6/Zion | Entered Deep Caves 20134 | -6/Deep Caves | Accompanied by 2 allies 20333 | -6/Deep Caves | Attacked by Z-Imprinter 20352 | -6/Deep Caves | Allies destroyed Z-Imprinter 20372 | -6/Deep Caves | Found Prototype Device 20372 | -6/Deep Caves | Identified Zio. Metafield Generator 20391 | -6/Deep Caves | Lost 3 parts (1p2u) 20407 | -6/Deep Caves | Found Exp. Thermal Shield 20417 | -6/Deep Caves | Found Prototype Protection 20417 | -6/Deep Caves | Identified Zio. Weapon Casing 20555 | -6/Deep Caves | Z-Facility disabled 20787 | -6/Deep Caves | Discovered new exit (range 7) 20867 | -6/Deep Caves | Identified exit to Proximity Caves 20869 | -6/Deep Caves | Entered Proximity Caves 21081 | -5/Proximity Caves | Learned location of Warlord (-4) 21133 | -5/Proximity Caves | Build established: Hacker-Sprinter 21201 | -5/Proximity Caves | Spotted B-75 Beast 21202 | -5/Proximity Caves | Destroyed B-75 Beast 21274 | -5/Proximity Caves | Spotted EF-R2D(f) 21275 | -5/Proximity Caves | Spotted YG-GY5(f) 21276 | -5/Proximity Caves | Encountered a Master Thief 21277 | -5/Proximity Caves | Discovered exit to Factory (range 14) 21278 | -5/Proximity Caves | Encountered a Master Thief 21336 | -5/Proximity Caves | Entered Factory 21336 | -5/Factory | Evolved 2 slots: Utility x2 21337 | -5/Factory | Identified exit to Factory 21338 | -5/Factory | Identified exit to Upper Caves 21340 | -5/Factory | Loaded intel: 20 terminal locations 21341 | -5/Factory | Loaded intel: 3 garrison access locations 21670 | -5/Factory | Repaired Cld. Nuclear Pulse Thruster? 21743 | -5/Factory | Fabricated Gravity Neutralizing Apparatus (x1) 21744 | -5/Factory | Repaired Cld. Nuclear Pulse Thruster? 21819 | -5/Factory | Fabricated Gravity Neutralizing Apparatus? 21932 | -5/Factory | Local fabrication network quarantined 21947 | -5/Factory | Fabricated Powered Armor (x2) 21968 | -5/Factory | Central database locked down 21990 | -5/Factory | Manually triggered Chute Trap 21990 | -5/Factory | Sucked down chute 21990 | -5/Factory | Entered Waste 21991 | -5/Waste | Joined by Warlord forces that had cleared the area 22028 | -5/Waste | Discovered new exit (range 12) 22124 | -5/Waste | Identified exit to Factory 22126 | -5/Waste | Entered Factory 22126 | -5/Factory | Accompanied by 3 allies 22263 | -5/Factory | Discovered exit to Upper Caves (range 8) 22550 | -5/Factory | Fabricated Impulse Thruster Array (x1) 22616 | -5/Factory | Fabricated Impulse Thruster Array? 22718 | -5/Factory | Fabricated Exp. Sensor Array? 22730 | -5/Factory | Local fabrication network quarantined 22824 | -5/Factory | Entered Upper Caves 22841 | -5/Upper Caves | Learned location of 1 exit from Proximity Caves 22856 | -5/Upper Caves | Discovered new exit (range 9) 22871 | -5/Upper Caves | Identified exit to Upper Caves 22871 | -5/Upper Caves | Entered another Upper Caves area 22882 | -5/Upper Caves | Found Alien Artifact 22882 | -5/Upper Caves | Identified Core Expander 22882 | -5/Upper Caves | Installed Core Expander, added new Power slot 22933 | -5/Upper Caves | Spotted B-75 Beast 22983 | -5/Upper Caves | Discovered new exit (range 15) 22985 | -5/Upper Caves | Identified exit to Zhirov 22989 | -5/Upper Caves | Entered Zhirov 22989 | -5/Zhirov | Discovered new exit (range 3) 22993 | -5/Zhirov | Met Zhirov 22996 | -5/Zhirov | Learned location of Quarantine (-3) 22996 | -5/Zhirov | Learned location of Testing (-2) 22996 | -5/Zhirov | Learned location of Command (-1) 22998 | -5/Zhirov | Zhirov requested help retrieving the SGEMP Prototype 23001 | -5/Zhirov | Found Alien Artifact 23001 | -5/Zhirov | Identified Integrated Reactor 23001 | -5/Zhirov | Installed Integrated Reactor, increased core energy generation (+10) 23049 | -5/Zhirov | Found Alien Artifact 23075 | -5/Zhirov | Attacked by Zhirov 23080 | -5/Zhirov | Zhirov warped through subspace 23084 | -5/Zhirov | Identified exit to Proximity Caves 23090 | -5/Zhirov | Zhirov detonated his lab 23090 | -5/Zhirov | Cloak Generator disabled 23166 | -5/Zhirov | Found Exp. Thermal Shield 23177 | -5/Zhirov | Entered Proximity Caves 23394 | -4/Proximity Caves | Spotted B-86 Titan 23395 | -4/Proximity Caves | Destroyed B-86 Titan 23444 | -4/Proximity Caves | Learned Research stockpile data 23448 | -4/Proximity Caves | Attracted the attention of an 0b10 outpost 23476 | -4/Proximity Caves | Entered Factory 23476 | -4/Factory | Evolved 2 slots: Utility x2 23477 | -4/Factory | Identified exit to Research 23515 | -4/Factory | Repaired Powered Armor 23558 | -4/Factory | Fabricated Exp. Utility Shielding (x1) 23568 | -4/Factory | Identified Transdimensional Reconstructor 23721 | -4/Factory | Discovered new exit (range 16) 23724 | -4/Factory | Identified exit to Upper Caves 23902 | -4/Factory | Sucked down chute 23902 | -4/Factory | Entered Waste 23904 | -4/Waste | Spotted C-40 Crusher 23914 | -4/Waste | Warlord forces began an assault 23929 | -4/Waste | Allies destroyed C-40 Crusher 23934 | -4/Waste | Spotted C-40 Crusher 23937 | -4/Waste | Spotted C-40 Crusher 23941 | -4/Waste | Spotted C-40 Crusher 23945 | -4/Waste | Spotted C-40 Crusher 23949 | -4/Waste | Allies destroyed C-40 Crusher 23951 | -4/Waste | Allies destroyed C-40 Crusher 23951 | -4/Waste | Allies destroyed C-40 Crusher 23953 | -4/Waste | Spotted C-40 Crusher 23956 | -4/Waste | Allies destroyed C-40 Crusher 23956 | -4/Waste | Allies destroyed C-40 Crusher 23973 | -4/Waste | Found Prototype Reactor 23995 | -4/Waste | Discovered new exit (range 12) 24030 | -4/Waste | Found Unknown Launcher 24030 | -4/Waste | Identified Fusion Bomb Launcher 24085 | -4/Waste | Identified exit to Factory 24087 | -4/Waste | Found Unknown Device 24087 | -4/Waste | Identified Antimissile System 24092 | -4/Waste | Entered Factory 24145 | -4/Factory | Identified Zero-point Reactor 24336 | -4/Factory | Spotted B-86 Titan 24338 | -4/Factory | Destroyed B-86 Titan 24396 | -4/Factory | Fabricated Cmb. Linear Gravjet (x2) 24406 | -4/Factory | Fabricated Zero-point Reactor? 24465 | -4/Factory | Fabricated Cmb. Linear Gravjet? 24591 | -4/Factory | Local fabrication network quarantined 24608 | -4/Factory | Build established: Hacker-Mutant 24774 | -4/Factory | Entered Upper Caves 24819 | -4/Upper Caves | Learned Research security intel 24842 | -4/Upper Caves | Spotted B-86 Titan 24876 | -4/Upper Caves | Discovered new exit (range 11) 24878 | -4/Upper Caves | Identified exit to Upper Caves 24880 | -4/Upper Caves | Entered another Upper Caves area 24883 | -4/Upper Caves | Learned Research stockpile data 24918 | -4/Upper Caves | Encountered a Warlord checkpoint 24996 | -4/Upper Caves | Build established: Hacker-Sprinter 25014 | -4/Upper Caves | Discovered new exit (range 16) 25017 | -4/Upper Caves | Identified exit to Warlord 25023 | -4/Upper Caves | Entered Warlord 25058 | -4/Warlord | Received a Watcher feed algorithm from an ecstatic Tinkerer 25159 | -4/Warlord | Met Warlord 25162 | -4/Warlord | Opened Warlord's prototype stash 25164 | -4/Warlord | Found Prototype Reactor 25164 | -4/Warlord | Identified Vortex Chain Reactor 25168 | -4/Warlord | Warlord's base attacked by MAIN.C 25168 | -4/Warlord | Found Prototype Device 25168 | -4/Warlord | Identified Exp. Phase Shifter 25173 | -4/Warlord | Found Prototype Device 25173 | -4/Warlord | Identified Thermal Barrier 25181 | -4/Warlord | Found Prototype Processor 25235 | -4/Warlord | Found Prototype Energy Gun 25235 | -4/Warlord | Identified Vortex Rail 25238 | -4/Warlord | Found Prototype Energy Gun 25238 | -4/Warlord | Identified Vortex Shotgun 25357 | -4/Warlord | Destroyed 16 combat bots 25461 | -4/Warlord | Found Prototype Ballistic Cannon 25466 | -4/Warlord | Warlord forces counterattacked 25473 | -4/Warlord | Discovered new exit (range 14) 25476 | -4/Warlord | Identified exit to Proximity Caves 25479 | -4/Warlord | Entered Proximity Caves 25500 | -3/Proximity Caves | Build established: Generator-Sprinter 25547 | -3/Proximity Caves | Snuck into a huge 0b10 base via the rear entrance 25614 | -3/Proximity Caves | Discovered exit to Research (range 13) 25824 | -3/Proximity Caves | Entered Research 25824 | -3/Research | Accompanied by 2 allies 25824 | -3/Research | Evolved 2 slots: Utility x2 25922 | -3/Research | Identified Spectral Analyzer 25923 | -3/Research | Identified Hvy. Autocannon 25924 | -3/Research | Fabricated Powered Armor? 25940 | -3/Research | Found Prototype Launcher 26023 | -3/Research | Spotted B-86 Titan 26023 | -3/Research | Destroyed B-86 Titan 26061 | -3/Research | Build established: Hacker-Sprinter 26075 | -3/Research | Identified exit to Armory 26075 | -3/Research | Identified exit to Quarantine 26113 | -3/Research | Found Gamma Bomb Array 26137 | -3/Research | Repaired Broken Exp. Sensor Array? 26139 | -3/Research | Discovered new exit (range 15) 26263 | -3/Research | Found Prototype Launcher 26276 | -3/Research | Identified Adv. Micro-nuke Launcher 26290 | -3/Research | Fabricated Zero-point Reactor? 26493 | -3/Research | Repaired Adv. Transmission Jammer? 26633 | -3/Research | Fabricated P-70 Sage (x2) 26654 | -3/Research | Fabricated Zero-point Reactor? 26809 | -3/Research | Spotted B-86 Titan 26864 | -3/Research | Entered Quarantine 26869 | -3/Quarantine | Found Alien Artifact 26892 | -3/Quarantine | Cryocooling Duct disabled 26907 | -3/Quarantine | Ambient heat levels rising (+20) 26907 | -3/Quarantine | Non-combat units ordered to evacuate 26918 | -3/Quarantine | Identified Core Reset Matrix 26965 | -3/Quarantine | Found Alien Artifact 27101 | -3/Quarantine | Build established: Machinist-Sprinter 27221 | -3/Quarantine | Repaired Cmb. Linear Gravjet 27290 | -3/Quarantine | Cryocooling Duct disabled 27305 | -3/Quarantine | Ambient heat levels rising (+20) 27305 | -3/Quarantine | Combat units ordered to evacuate 27341 | -3/Quarantine | Identified Subatomic Replicator 27404 | -3/Quarantine | Found Alien Artifact 27405 | -3/Quarantine | Quarantine Guard activated 27433 | -3/Quarantine | Spotted Fortress 27484 | -3/Quarantine | Spotted Quarantine Guard 27622 | -3/Quarantine | Destroyed Fortress 27628 | -3/Quarantine | Found Prototype Device 27628 | -3/Quarantine | Identified Exp. Force Field 27634 | -3/Quarantine | Found Unknown Protection 27634 | -3/Quarantine | Identified Hvy. Insulated Plating 27637 | -3/Quarantine | Found Prototype Protection 27637 | -3/Quarantine | Identified Centrium Heavy Armor Plating 27640 | -3/Quarantine | Found Prototype Device 27640 | -3/Quarantine | Identified EM Dispersion Field 27654 | -3/Quarantine | Destroyed Quarantine Guard 27671 | -3/Quarantine | Spotted Quarantine Guard 27699 | -3/Quarantine | Spotted Quarantine Guard 27727 | -3/Quarantine | Found Alien Energy Cannon 27727 | -3/Quarantine | Identified Core Cannon 27778 | -3/Quarantine | Spotted Quarantine Guard 27922 | -3/Quarantine | Spotted Quarantine Guard 27978 | -3/Quarantine | Spotted Quarantine Guard 28060 | -3/Quarantine | Destroyed Quarantine Guard 28100 | -3/Quarantine | Destroyed Quarantine Guard 28166 | -3/Quarantine | Destroyed Quarantine Guard 28205 | -3/Quarantine | Met incapacitated Sigix Warrior 28205 | -3/Quarantine | Lockdown squad dispatched 28206 | -3/Quarantine | Acquired the access code to the Sigix quarantine chamber 28206 | -3/Quarantine | Unlocked Sigix quarantine chamber 28301 | -3/Quarantine | Spotted Lightning 28305 | -3/Quarantine | Spotted Lightning 28306 | -3/Quarantine | Spotted Lightning 28493 | -3/Quarantine | Found Prototype Energy Cannon 28493 | -3/Quarantine | Identified EMDS 28496 | -3/Quarantine | Found EMDS 28506 | -3/Quarantine | Destroyed Lightning 28519 | -3/Quarantine | Destroyed Lightning 28535 | -3/Quarantine | Spotted Quarantine Guard 28647 | -3/Quarantine | Destroyed Quarantine Guard 28661 | -3/Quarantine | Spotted Quarantine Guard 28744 | -3/Quarantine | Discovered new exit (range 6) 28746 | -3/Quarantine | Identified exit to Section 7 28747 | -3/Quarantine | Entered Section 7 28779 | -3/Section 7 | Found Integrated Reactor 28779 | -3/Section 7 | Installed Integrated Reactor, increased core energy generation (+10) 28956 | -3/Section 7 | Found Alien Artifact 28980 | -3/Section 7 | Identified Integrity Redistributor 28990 | -3/Section 7 | Used Integrity Redistributor, redistributed integrity from core (-145) 28996 | -3/Section 7 | Found Integrity Redistributor 29094 | -3/Section 7 | Spotted B-86 Titan 29096 | -3/Section 7 | Destroyed B-86 Titan 29115 | -3/Section 7 | Found Alien Artifact 29115 | -3/Section 7 | Identified Integrated Dissipator 29115 | -3/Section 7 | Installed Integrated Dissipator, increased core heat dissipation (+20) 29181 | -3/Section 7 | Destroyed S7 Guard 29210 | -3/Section 7 | Found Prototype Protection 29210 | -3/Section 7 | Identified Hvy. Regenerative Plating 29233 | -3/Section 7 | Found Alien Artifact 29233 | -3/Section 7 | Identified Core Membrane 29233 | -3/Section 7 | Installed Core Membrane, gained immunity to corruption 29465 | -3/Section 7 | Spotted S7 Guard 29466 | -3/Section 7 | Found Alien Artifact 29474 | -3/Section 7 | Identified Integrated Heat Negator 29474 | -3/Section 7 | Installed Integrated Heat Negator, increased core heat dissipation (+40) 29506 | -3/Section 7 | Spotted S7 Guard 29516 | -3/Section 7 | Found Alien Artifact 29594 | -3/Section 7 | Identified Core Regenerator 29643 | -3/Section 7 | Spotted B-99 Colossus 29663 | -3/Section 7 | Found Alien Artifact 29663 | -3/Section 7 | Identified LRC Armor 29663 | -3/Section 7 | Installed LRC Armor, increased core integrity (+250) 29665 | -3/Section 7 | Found Alien Artifact 29665 | -3/Section 7 | Identified LRC Boosters 29665 | -3/Section 7 | Installed LRC Boosters, increased mass support (+10) 29712 | -3/Section 7 | Found Integrated Reactor 29712 | -3/Section 7 | Installed Integrated Reactor, increased core energy generation (+10) 29714 | -3/Section 7 | Found Integrated Reactor 29714 | -3/Section 7 | Installed Integrated Reactor, increased core energy generation (+10) 29716 | -3/Section 7 | Found Integrated Reactor 29716 | -3/Section 7 | Installed Integrated Reactor, increased core energy generation (+10) 29732 | -3/Section 7 | Destroyed B-99 Colossus 29757 | -3/Section 7 | Build established: Generator-Sprinter 29766 | -3/Section 7 | Used Core Regenerator, restored core integrity (+316) 29770 | -3/Section 7 | Found Alien Artifact 29770 | -3/Section 7 | Identified Matter Drive 29826 | -3/Section 7 | Spotted Alpha 7 30048 | -3/Section 7 | Discovered new exit (range 15) 30050 | -3/Section 7 | Spotted S7 Guard 30057 | -3/Section 7 | Found Alien Artifact 30061 | -3/Section 7 | Identified exit to Research 30061 | -3/Section 7 | Entered Research 30061 | -2/Research | Warlord forces began assault on 0b10 30061 | -2/Research | Evolved 2 slots: Utility x2 30062 | -2/Research | Identified exit to Testing 30096 | -2/Research | Spotted B-90 Cyclops 30117 | -2/Research | Destroyed B-90 Cyclops 30134 | -2/Research | Identified Integrated Singularity Reactor 30134 | -2/Research | Installed Integrated Singularity Reactor, increased core energy generation (+20) 30171 | -2/Research | Research machine network offline 30196 | -2/Research | Fabricated Exp. Hacking Suite (x1) 30218 | -2/Research | Met up with Warlord 30308 | -2/Research | Discovered new exit (range 15) 30311 | -2/Research | Identified exit to Access 30321 | -2/Research | Found Prototype Slashing Weapon 30321 | -2/Research | Identified Particle Cleaver 30343 | -2/Research | Borebot progress halted 30436 | -2/Research | Discovered exit to Access (range 11) 30464 | -2/Research | Borebot progress halted 30473 | -2/Research | Spotted Striker 30473 | -2/Research | Spotted Executioner 30795 | -2/Research | Spotted Striker 30795 | -2/Research | Spotted Striker 30826 | -2/Research | Spotted B-90 Cyclops 30835 | -2/Research | Destroyed B-90 Cyclops 30848 | -2/Research | Local fabrication network quarantined 30934 | -2/Research | Spotted B-90 Cyclops 30936 | -2/Research | Destroyed B-90 Cyclops 30943 | -2/Research | Found Gamma Bomb Array 31008 | -2/Research | Found Prototype Device 31008 | -2/Research | Identified Exp. ECM Suite 31013 | -2/Research | Found Prototype Device 31013 | -2/Research | Identified Adv. Kinecellerator 31061 | -2/Research | Warlord invited to help at Command 31099 | -2/Research | Found Particle Cleaver 31110 | -2/Research | Entered Testing 31133 | -2/Testing | Found Prototype Energy Gun 31133 | -2/Testing | Identified Warp Gun 31149 | -2/Testing | Found Prototype Device 31149 | -2/Testing | Identified Exp. Hardlight Generator 31173 | -2/Testing | Found Prototype Energy Cannon 31173 | -2/Testing | Identified Cld. Nova Cannon 31350 | -2/Testing | Found Prototype Ballistic Cannon 31350 | -2/Testing | Identified Omega Cannon 31364 | -2/Testing | Discovered exit to Access (range 15) 31401 | -2/Testing | First assault squad dispatched 31509 | -2/Testing | Repaired Exp. Utility Shielding 31564 | -2/Testing | Found Prototype Ballistic Gun 31564 | -2/Testing | Identified Hyp. Multirail 31626 | -2/Testing | Found Prototype Energy Cannon 31626 | -2/Testing | Identified Disintegrator 31776 | -2/Testing | Entered Access 31776 | -1/Access | Accompanied by 1 ally 31776 | -1/Access | Evolved 2 slots: Propulsion x1, Utility x1 32394 | -1/Access | Spotted B-99 Colossus 32522 | -1/Access | Spotted B-99 Colossus 32523 | -1/Access | Destroyed B-99 Colossus 32837 | -1/Access | Central database locked down 32837 | -1/Access | Discovered new exit (range 8) 32959 | -1/Access | Fabricated Exp. Armor Integrity Analyzer? 33025 | -1/Access | Fabricated Exp. Weapon Cycler (x1) 33026 | -1/Access | First assault squad dispatched 33076 | -1/Access | Fabricated Adv. Kinecellerator? 33196 | -1/Access | Repaired Exp. Utility Shielding 33237 | -1/Access | Repaired Exp. Weapon Shielding 33610 | -1/Access | Fabricated Exp. Propulsion Shielding (x1) 33891 | -1/Access | Identified exit to Command 33891 | -1/Access | Entered Command 34027 | -1/Command | Destroyed 8 combat bots 34038 | -1/Command | Spotted M Guard 34038 | -1/Command | Spotted M Guard 34038 | -1/Command | Spotted Combat Programmer 34059 | -1/Command | Spotted Combat Programmer 34071 | -1/Command | Destroyed Combat Programmer 34086 | -1/Command | Destroyed Combat Programmer 34108 | -1/Command | Destroyed M Guard 34117 | -1/Command | Destroyed M Guard 34117 | -1/Command | All MAIN.C guards destroyed 34118 | -1/Command | Found Prototype Device 34119 | -1/Command | Identified AEGIS Remote Shield 34121 | -1/Command | Found Zero-point Reactor 34141 | -1/Command | First assault squad dispatched 34166 | -1/Command | Repaired Exp. Propulsion Shielding 34171 | -1/Command | Repaired Exp. Utility Shielding? 34206 | -1/Command | Spotted B-99 Colossus 34540 | -1/Command | Disengaged cave seal 34551 | -1/Command | Welcomed Warlord to Command 34562 | -1/Command | Disengaged cave seal 34595 | -1/Command | Build established: Generator-Mutant 34721 | -1/Command | Warlord commented on Warlord statues 34832 | -1/Command | Met MAIN.C 34842 | -1/Command | 0b10 Conduit disabled 34851 | -1/Command | MAIN.C activated Command garrisons 34864 | -1/Command | Destroyed MAIN.C 34879 | -1/Command | Found Prototype Protection 34880 | -1/Command | Identified Exp. Powered Armor 34943 | -1/Command | Spotted RP-7ST(g) 35048 | -1/Command | Destroyed 11 combat bots 36153 | -1/Command | Found Prototype Ballistic Gun 36153 | -1/Command | Identified Multirail 36156 | -1/Command | Found Prototype Device 36156 | -1/Command | Identified Exp. Focal Shield 36161 | -1/Command | Found Prototype Device 36161 | -1/Command | Identified System Purifier 36173 | -1/Command | Found Zero-point Reactor 36340 | -1/Command | Attacked by Warlord forces 36439 | -1/Command | Build established: Generator-Sprinter 36463 | -1/Command | Found Exp. Targeting Computer 36478 | -1/Command | Found Exp. Targeting Computer 36586 | -1/Command | Phase Generator disabled 36979 | -1/Command | Build established: Generator-Mutant 38450 | -1/Command | Found Prototype Ballistic Cannon 38450 | -1/Command | Identified Blast Cannon 38926 | -1/Command | Found Exp. Powered Armor 39047 | -1/Command | Used Subatomic Replicator to replicate Integrity Redistributor 39057 | -1/Command | Warped through subspace to slip node 39057 | -1/Command | Discovered new exit (range 5) 39061 | -1/Command | Entered Access_0 39063 | -1/Access_0 | Met Architect 39064 | -1/Access_0 | Architect warped through subspace 39095 | -1/Access_0 | Destroyed A8 39160 | -1/Access_0 | Architect warped through subspace 39183 | -1/Access_0 | A6 warped into view 39190 | -1/Access_0 | Destroyed A6 39196 | -1/Access_0 | Architect warped through subspace 39226 | -1/Access_0 | Architect warped through subspace 39264 | -1/Access_0 | Architect warped through subspace 39273 | -1/Access_0 | Destroyed 9 combat bots 39281 | -1/Access_0 | A5 warped into view 39300 | -1/Access_0 | Destroyed A5 39306 | -1/Access_0 | Found Integrated Reactor 39306 | -1/Access_0 | Installed Integrated Reactor, increased core energy generation (+10) 39331 | -1/Access_0 | Architect warped through subspace 39369 | -1/Access_0 | Architect warped through subspace 39372 | -1/Access_0 | Used Integrity Redistributor, redistributed integrity from core (-195) 39385 | -1/Access_0 | Found Prototype Device 39385 | -1/Access_0 | Identified Desublimator 39406 | -1/Access_0 | Build established: Generator-Sprinter 39416 | -1/Access_0 | Architect warped through subspace 39426 | -1/Access_0 | Destroyed 8 combat bots 39434 | -1/Access_0 | Found Exp. Targeting Computer 39445 | -1/Access_0 | Architect warped through subspace 39453 | -1/Access_0 | A4 warped into view 39471 | -1/Access_0 | Destroyed A4 39499 | -1/Access_0 | Architect warped through subspace 39522 | -1/Access_0 | Architect warped through subspace 39535 | -1/Access_0 | Architect warped through subspace 39558 | -1/Access_0 | Architect warped through subspace 39563 | -1/Access_0 | Subspace Access Node disabled 39573 | -1/Access_0 | Subspace Access Node disabled 39580 | -1/Access_0 | Architect warped through subspace 39608 | -1/Access_0 | Architect warped through subspace 39634 | -1/Access_0 | Architect warped through subspace 39651 | -1/Access_0 | Architect warped through subspace 39660 | -1/Access_0 | Architect warped through subspace 39665 | -1/Access_0 | Architect warped through subspace 39678 | -1/Access_0 | Architect warped through subspace 39686 | -1/Access_0 | Architect warped through subspace 39689 | -1/Access_0 | Subspace Access Node disabled 39691 | -1/Access_0 | Architect warped through subspace 39692 | -1/Access_0 | Subspace Access Node disabled 39758 | -1/Access_0 | Destroyed A2 39765 | -1/Access_0 | A3 warped into view 39782 | -1/Access_0 | Destroyed A3 39816 | -1/Access_0 | Found Sigix Corpse 39921 | -1/Access_0 | Started Test 138-B, establishing a local singularity 39921 | -1/Access_0 | Singularity Gate disabled 40013 | -1/Access_0 | Used Integrity Redistributor, redistributed integrity from core (-118) 40057 | -1/Access_0 | Destroyed Architect 40061 | -1/Access_0 | Found Alien Artifact 40063 | -1/Access_0 | Extracted unknown sensor trigger ID from Architect's data core 40089 | -1/Access_0 | Found Alien Artifact 40122 | -1/Access_0 | Identified Hpw. Transdimensional Reconstructor (x2) 40122 | -1/Access_0 | Warped through subspace to slip node 40122 | -1/Access_0 | Discovered new exit (range 8) 40124 | -1/Access_0 | Warped through subspace to slip node 40127 | *** | Establishing 0b11! Last Messages --------------- 40073_ Destroyed Prototype Leg. 40074_ HV Slug penetrates Wall. 40074_ HV Slug penetrates Enhanced Hunter. 40074_ HV Slug penetrates Wall. 40076_ Penetrated by HV Slug. 40076_ Knocked back. 40076_ Penetrated by HV Slug. 40076_ HV Slug penetrates Wall. 40076_ HV Slug penetrates Enhanced Hunter. 40076_ Enhanced Hunter suffers critical hit. 40076_ Enhanced Hunter destroyed. 40078_ Acquired 82 matter. 40079_ Acquired 86 matter. 40082_ Acquired Blast Cannon. 40087_ Dropped Exp. Weapon Shielding. 40089_ Acquired Alien Artifact. 40122_ Identified Hpw. Transdimensional Reconstructor. 40122_ Warped through subspace, drawn to slip node. 40122_ EXIT=FOUND 40124_ Warped through subspace, drawn to slip node. Map ----- +----------------------------------------------------+ | | | | | | | | | | | | | | | | | | | | | | | | | | | | | | | | | ?????????????????????????????????????????????????? | | ?????????????????????????????????????????????????? | | ?????????????????????????????????????????????????? | | ?????????????????????????????????????????????????? | | ?????????????????????????????????????????????????? | | ?????????????????????????????????????????????????? | | ????????????????????????###??????????????????????? | | ???????????????????????## ##?????????????????????? | | ???????????????????????# #?????????????????????? | | ???????????????????????# @ #?????????????????????? | | ??????????????????????## #?????????????????????? | | ??????????????????????# #?????????????????????? | | ??????????????????????# ##?????????????????????? | | ??????????????????????## #?????????????????????? | | ??????????????????????# #?????????????????????? | | ??????????????????????# ##?????????????????????? | | ??????????????????????# < #?????????????????????? | | ??????????????????????# ##?????????????????????? | | ??????????????????????## #??????????????????????? | | ???????????????????????####??????????????????????? | | ?????????????????????????????????????????????????? | | ?????????????????????????????????????????????????? | | ?????????????????????????????????????????????????? | | ?????????????????????????????????????????????????? | | ?????????????????????????????????????????????????? | | ?????????????????????????????????????????????????? | | ?????????????????????????????????????????????????? | | ?????????????????????????????????????????????????? | | ?????????????????????????????????????????????????? | | ?????????????????????????????????????????????????? | | ?????????????????????????????????????????????????? | | ?????????????????????????????????????????????????? | | ?????????????????????????????????????????????????? | | ?????????????????????????????????????????????????? | +----------------------------------------------------+ Best States ------------- Heat Dissipation 112 Energy Generation 169 Energy Capacity 2220 Matter Stores 300 Matter Capacity 300 Sight Range 16 Robot Scan Range 30 Terrain Scan Density 210 ECM Strength 5 Jamming Range 16 Cloak Strength 4 Power Amplification 30 Additional Mass Support 24 Armor Coverage 1000 Resistance: EM 75 Propulsion Shielding 90 Utility Shielding 90 Weapon Shielding 100 Weapon Cycling 30 Melee Speed Boost 30 Phase Shifting 20 Evasion (%) 94 Targeting Accuracy 36 Target Analysis 8 Core Analysis 10 Armor Integrity Analysis 90 Recoil Reduction 3 Matter Filtering 50 Energy Filtering 50 Kinecelleration 50 Offensive Hacking 42 Defensive Hacking 28 Item Schematics ----------------- Hcp. Storage Unit | -10/Materials | Hacked Lrg. Matter Pod | -10/Materials | Hacked Lrg. Storage Unit | -10/Materials | Hacked Xenon Bombardment Thruster | -7/Factory | Scanalyzed Imp. VTOL Module | -7/Factory | Hacked Nuclear Pulse Thruster | -7/Factory | Hacked Lrn. Sensor Array | -7/Factory | Hacked Mni. Smartbomb Launcher | -7/Data Miner | Free Exp. Terrain Scan Processor | -7/Data Miner | Free Combat Drone Bay | -7/Data Miner | Free Lgt. Regenerative Plating | -7/Data Miner | Free Exp. Targeting Computer | -7/Data Miner | Free Cloaking Device | -7/Data Miner | Free Kinetic Spear | -7/Data Miner | Free Field Propulsion Array | -6/Factory | Hacked F-cell Engine | -6/Factory | Hacked Adv. ECM Suite | -6/Factory | Hacked Powered Armor | -6/Factory | Hacked Com. Tesla Bomb Launcher | -6/Factory | Hacked Biomechanical Wings | -6/Factory | Hacked Cld. Nuclear Pulse Thruster | -6/Factory | Hacked Reaction Control System | -6/Factory | Hacked Lrn. Proton Cannon | -6/Factory | Hacked Exp. Sensor Array | -6/Factory | Hacked Gravity Neutralizing Apparatus | -5/Factory | Hacked Impulse Thruster Array | -5/Factory | Hacked Exp. Propulsion Shielding | -5/Factory | Hacked Exp. Utility Shielding | -5/Factory | Hacked Assault Drone Bay | -5/Zhirov | Free Exp. Heat Sink | -5/Zhirov | Free Exp. Optical Array | -5/Zhirov | Free Imp. Arc Thrower | -5/Zhirov | Free Adv. Cloaking Device | -4/Factory | Hacked Zero-point Reactor | -4/Factory | Scanalyzed Cmb. Linear Gravjet | -4/Factory | Hacked Spectral Analyzer | -3/Research | Scanalyzed Exp. Energy Well | -3/Research | Scanalyzed Exp. Hacking Suite | -3/Quarantine | Hacked Exp. Core Analyzer | -2/Testing | Hacked Exp. Armor Integrity Analyzer | -1/Access | Hacked Adv. Kinecellerator | -1/Access | Hacked Exp. Weapon Cycler | -1/Access | Hacked Exp. Actuator Array | -1/Access | Hacked Robot Schematics ------------------ S-27 Virus | -7/Data Miner | Free G-50 Soldier | -7/Data Miner | Free X-72 Disruptor | -7/Data Miner | Free H-66 Slayer | -7/Data Miner | Free I-36 Angel | -7/Data Miner | Free I-47 Archangel | -7/Data Miner | Free L-41 Fighter | -7/Data Miner | Free P-70 Sage | -5/Factory | Hacked R-06 Scavenger | -2/Research | Hacked Fabricated ------------ Imp. VTOL Module | x1 | -7/Factory Imp. VTOL Module | x1 | -7/Factory Imp. VTOL Module | x1 | -7/Factory Imp. VTOL Module | x1 | -6/Factory Kinetic Spear | x1 | -6/Factory Mni. Smartbomb Launcher | x1 | -6/Factory Biomechanical Wings | x1 | -6/Factory Cld. Nuclear Pulse Thruster | x1 | -6/Factory Cld. Nuclear Pulse Thruster | x1 | -6/Factory Cld. Nuclear Pulse Thruster | x1 | -6/Factory Lrn. Sensor Array | x1 | -6/Factory Gravity Neutralizing Apparatus | x1 | -5/Factory Gravity Neutralizing Apparatus | x1 | -5/Factory Powered Armor | x2 | -5/Factory Impulse Thruster Array | x1 | -5/Factory Impulse Thruster Array | x1 | -5/Factory Exp. Sensor Array | x1 | -5/Factory Exp. Utility Shielding | x1 | -4/Factory Cmb. Linear Gravjet | x2 | -4/Factory Zero-point Reactor | x1 | -4/Factory Cmb. Linear Gravjet | x2 | -4/Factory Powered Armor | x2 | -3/Research Zero-point Reactor | x1 | -3/Research P-70 Sage | x2 | -3/Research Zero-point Reactor | x1 | -3/Research Exp. Hacking Suite | x1 | -2/Research Exp. Armor Integrity Analyzer | x1 | -1/Access Exp. Weapon Cycler | x1 | -1/Access Adv. Kinecellerator | x1 | -1/Access Exp. Propulsion Shielding | x1 | -1/Access Alien Tech Used ----------------- Core Expander Integrated Reactor Core Cannon Integrity Redistributor Integrated Dissipator Core Membrane Integrated Heat Negator LRC Armor LRC Boosters Core Regenerator Matter Drive Integrated Singularity Reactor Subatomic Replicator Transdimensional Reconstructor High-powered Transdimensional Reconstructor Achievements -------------- None Challenges ------------ None Game ------ Seed TacticalBiometalDatajack Manual? 0 Play Time 17:18:30 Cumulative 961.0 hours Start 2020.10.15 @ 19:00:12 End 2020.10.24 @ 00:43:05 Sessions 11 Manual Loads 0 Difficulty Rogue Special Mode None Game No. 327 Rogue 327 Adventurer 0 Explorer 0 Win Type 1 Total 50 Types 11/15/9/3/1/1/8/1/1 Lore% 98 Gallery% 95 Achievement% 84 Wizard Run 0 Options --------- ASCII 0 Keyboard 0 Movement Numpad Keybinds 0 Fullscreen 2 Font 24/Smallcaps Map View 76x50 Tactical HUD 1 Map Filters NONE Filters NONE Steam 1 RUN: 8b285c03-9008-4ed1-9a80-f5105db929cf